Cogmind - Beta 11.1 @@@ ROGUE MODE // 2022.05.15 @ 17:05:20 Player: PlasticHeart Result: Self-destructed Performance ------------- Evolutions (9) 4500 Regions Visited (40) 8000 Robots Destroyed (161) 805 Value Destroyed (4082) 4082 Prototype IDs (66) 1320 Alien Tech Used (5) 1000 Bonus (7032) 7032 TOTAL SCORE: 26739 Bonus ------- High Alert Combat Kills 256 Follower Combat Kills 4258 Met Data Miner 300 Met Imprinter 300 Met Warlord at Base 500 MAIN.C Attacked Warlord 500 Built Enhanced Grunts 300 A7 Reached Mainframe 300 Met R17 at Cetus 500 Friendly Fire -182 Cogmind --------- Core Integrity 1254/1600 Matter 300/300 Energy 4/100 System Corruption 16% Temperature Cool (0) Movement Hovering (40) Location -1/Command Parts ------- > --- POWER (3) -------- (None) > --- PROPULSION (8) --- Combat Antigrav System Cooled Linear Gravjet Combat Linear Gravjet Combat Linear Gravjet Combat Linear Gravjet Combat Linear Gravjet > --- UTILITY (11) ----- Experimental Heat Sink High-capacity Storage Unit Long-range Sensor Array Advanced Signal Interpreter Advanced Melee Analysis Suite Advanced Melee Analysis Suite Advanced Target Analyzer Advanced Actuator Array Advanced System Shield > --- WEAPON (4) ------- Vibroblade Enhanced Force Lance > --- INVENTORY (20) --- Cooled Antigrav System Cooled Antigrav System Cooled Antigrav System Cooled Linear Gravjet Combat Linear Gravjet Experimental Energy Well (600) Improved Armor Integrity Analyzer Advanced Transmission Jammer Advanced Phase Shifter Graphene Brace Authchip [Device] Authchip [Weapon] Potential Cannon Compact Linear Accelerator Compact Linear Accelerator Advanced Remote Datajack Vibroblade Sigix Broadsword Peak State ------------ > --- POWER ------------ Mini Fusion Reactor Vortex Chain Reactor > --- PROPULSION ------- Cooled Antigrav System Combat Antigrav System Cooled Linear Gravjet Combat Linear Gravjet Combat Linear Gravjet Combat Linear Gravjet Combat Linear Gravjet Combat Linear Gravjet > --- UTILITY ---------- Experimental Heat Sink High-capacity Storage Unit Long-range Sensor Array Advanced Signal Interpreter Advanced Melee Analysis Suite Advanced Melee Analysis Suite Advanced Target Analyzer Advanced Actuator Array Advanced Reaction Control System Improved Powered Armor Advanced System Shield > --- WEAPON ----------- Compact Linear Accelerator Sigix Broadsword Enhanced Force Lance > --- INVENTORY -------- Light Quantum Reactor Light Quantum Reactor Cooled Antigrav System Cooled Antigrav System Cooled Antigrav System Cooled Antigrav System Cooled Linear Gravjet Combat Linear Gravjet Experimental Energy Well Improved Armor Integrity Analyzer Advanced Transmission Jammer Advanced Phase Shifter Graphene Brace Authchip [Device] Authchip [Weapon] Potential Cannon Compact Linear Accelerator Advanced Remote Datajack [Rating: 224] Favorites ----------- Power Light Fission Core Engine Improved Ion Engine Power Core Light Fission Core Reactor Mini Fusion Reactor Propulsion Combat Linear Gravjet Treads Improved Heavy Siege Treads Wheel Wheel Hover Unit Combat Linear Gravjet Flight Unit Improved VTOL Module Utility Hacking Suite Device Advanced Sensor Array Storage Large Storage Unit Processor Advanced Signal Interpreter Hackware Hacking Suite Protection Improved Powered Armor Weapon Powered Hammer Energy Gun Tachyon Dispersion Ray Energy Cannon Cooled Nova Cannon Ballistic Gun Light Assault Rifle Ballistic Cannon Improved Light Cannon Launcher Grenade Launcher Special Weapon RU-N14's Throwing Claymores Impact Weapon Powered Hammer Slashing Weapon Sigix Broadsword Piercing Weapon Enhanced Force Lance Special Melee Weapon Improved Datajack Build | -11 -10 -10 -10 -9 -8 -7 -7 -7 -7 -7 -7 -6 -6 -6 -6 -6 -6 -6 -5 -5 -5 -5 -5 -5 -5 -5 -4 -4 -4 -4 -4 -4 -3 -3 -3 -2 -2 -2 -1 -1 ------- Run | Scr Mat Min Exi Min Mat Fac Was Fac Low Low Zio Pro Fac Was Fac Low Low Dat Pro Fac Was Fac Ext Cet Arc Hub Fac Was Fac Upp Upp War Pro Res Tes Res Qua Sec Acc Com Slots Evolved 18 | . . . . . 4 2 . . . . . . 2 . . . . . . 2 . . . . . . 2 . . . . . . 2 . 2 . . 2 . Power 1 | . . . . . . . . . . . . . . . . . . . . 1 . . . . . . . . . . . . . . . . . . . . Propulsion 6 | . . . . . 2 . . . . . . . 1 . . . . . . . . . . . . . 1 . . . . . . 1 . 1 . . . . Utility 9 | . . . . . 2 2 . . . . . . 1 . . . . . . 1 . . . . . . 1 . . . . . . 1 . 1 . . . . Weapon 2 | . . . . . . . . . . . . . . . . . . . . . . . . . . . . . . . . . . . . . . . 2 . Parts Attached 264 | 6 4 3 . 8 29 14 2 4 6 2 3 1 8 3 18 . . . 2 11 3 5 4 9 1 4 24 1 10 6 4 13 . 18 10 13 2 3 2 8 Power 30 | 1 1 2 . . 4 . . . . 1 1 . . . . . . . . 2 1 2 . . . . 5 . 1 1 . 3 . 1 . 2 . . . 2 Engine 9 | 1 1 2 . . 4 . . . . 1 . . . . . . . . . . . . . . . . . . . . . . . . . . . . . . Core 7 | . . . . . . . . . . . 1 . . . . . . . . 2 . 2 . . . . 2 . . . . . . . . . . . . . Reactor 14 | . . . . . . . . . . . . . . . . . . . . . 1 . . . . . 3 . 1 1 . 3 . 1 . 2 . . . 2 Propulsion 77 | 2 2 . . 2 12 4 . . 3 1 . . 2 3 8 . . . . 2 . 2 . 1 . 2 11 1 5 . . 1 . 4 . 7 . . . 2 Treads 1 | . . . . . . . . . . . . . . 1 . . . . . . . . . . . . . . . . . . . . . . . . . . Leg . | . . . . . . . . . . . . . . . . . . . . . . . . . . . . . . . . . . . . . . . . . Wheel 16 | 2 2 . . 2 10 . . . . . . . . . . . . . . . . . . . . . . . . . . . . . . . . . . . Hover 55 | . . . . . 1 . . . 3 1 . . 2 2 8 . . . . 2 . 2 . 1 . 2 11 1 5 . . 1 . 4 . 7 . . . 2 Flight 5 | . . . . . 1 4 . . . . . . . . . . . . . . . . . . . . . . . . . . . . . . . . . . Utility 83 | 1 1 1 . 2 6 8 . 3 3 . . . 5 . 3 . . . . 4 . . 2 3 1 1 6 . 3 2 1 5 . 8 4 4 1 3 1 1 Device 34 | . . 1 . . . 1 . 2 2 . . . 1 . . . . . . 1 . . 1 1 . 1 2 . 2 . . 3 . 6 2 4 1 2 1 . Storage 9 | 1 1 . . . . 2 . . . . . . . . 1 . . . . . . . . . . . 2 . . . . . . . 2 . . . . . Processor 10 | . . . . . 3 3 . . . . . . . . . . . . . 1 . . . . . . . . . 2 . . . 1 . . . . . . Hackware 10 | . . . . . . 2 . 1 1 . . . 2 . 1 . . . . 2 . . . . . . . . 1 . . . . . . . . . . . Protection 20 | . . . . 2 3 . . . . . . . 2 . 1 . . . . . . . 1 2 1 . 2 . . . 1 2 . 1 . . . 1 . 1 Artifact . | . . . . . . . . . . . . . . . . . . . . . . . . . . . . . . . . . . . . . . . . . Weapon 74 | 2 . . . 4 7 2 2 1 . . 2 1 1 . 7 . . . 2 3 2 1 2 5 . 1 2 . 1 3 3 4 . 5 6 . 1 . 1 3 Energy Gun 5 | . . . . . . . 1 . . . . . . . . . . . . . 1 . . . . . . . . . . 2 . . 1 . . . . . Energy Cannon 2 | . . . . . . . . . . . . . . . . . . . . . . . . . . . . . . . . . . . 2 . . . . . Ballistic Gun 10 | 2 . . . 2 2 . . . . . . . . . . . . . . . . . . 4 . . . . . . . . . . . . . . . . Ballistic Cannon 6 | . . . . 1 2 . . . . . . . . . . . . . . . . . . . . . . . . . . . . . 2 . . . . 1 Launcher 11 | . . . . 1 3 . . . . . . . . . 1 . . . 1 1 . . . 1 . . . . . 1 1 . . 1 . . . . . . Special Weapon 5 | . . . . . . . . . . . 1 1 . . 2 . . . . . . . . . . . . . . . . . . . . . . . . 1 Impact Weapon 20 | . . . . . . 1 1 . . . 1 . 1 . 3 . . . 1 1 . 1 1 . . 1 1 . . 2 1 2 . 2 . . . . . . Slashing Weapon 2 | . . . . . . . . . . . . . . . . . . . . . . . . . . . . . . . . . . . . . 1 . . 1 Piercing Weapon 5 | . . . . . . . . . . . . . . . . . . . . . . . . . . . . . 1 . . . . 2 1 . . . 1 . Special Melee Weapon 8 | . . . . . . 1 . 1 . . . . . . 1 . . . . 1 1 . 1 . . . 1 . . . 1 . . . . . . . . . Unidentified Prototypes 31 | . . 1 . . 3 . 1 . . . 1 . . . 3 . . . . . 1 . . 1 1 . 1 . . 1 . 5 . . 7 2 1 1 . 1 Corrupted Parts 3 | . . . . . 3 . . . . . . . . . . . . . . . . . . . . . . . . . . . . . . . . . . . System Corruption 27 | . . . . . 27 . . . . . . . . . . . . . . . . . . . . . . . . . . . . . . . . . . . Parts Lost 25 | . 2 . . . 7 . . . . . . . . . . . . . . . . . 1 . . 1 . . 2 . . . . 5 . . . . . 7 Power 4 | . . . . . . . . . . . . . . . . . . . . . . . . . . 1 . . . . . . . . . . . . . 3 Propulsion 9 | . 2 . . . 3 . . . . . . . . . . . . . . . . . . . . . . . 1 . . . . 1 . . . . . 2 Utility 9 | . . . . . 1 . . . . . . . . . . . . . . . . . 1 . . . . . 1 . . . . 4 . . . . . 2 Weapon 3 | . . . . . 3 . . . . . . . . . . . . . . . . . . . . . . . . . . . . . . . . . . . Highest Loss Streak 6 | . 1 . . . 2 . . . . . . . . . . . . . . . . . 1 . . 1 . . 1 . . . . 5 . . . . . 6 To Critical Strikes . | . . . . . . . . . . . . . . . . . . . . . . . . . . . . . . . . . . . . . . . . . Average Slot Usage (%) 96 | . 97 96 85 99 97 99 100 100 94 99 100 100 96 99 99 100 100 100 100 96 100 100 99 99 100 99 97 94 96 94 90 92 90 85 86 94 91 91 88 92 Engine 3 | . 14 14 14 14 9 7 7 7 7 7 4 . . . . . . . . . . . . . . . . . . . . . . . . . . . . . Core 3 | . . . . . . . . . . . 2 7 6 6 6 6 6 6 6 9 9 9 11 11 11 10 4 5 5 . . . . . . . . . . . Reactor 2 | . . . . . . . . . . . . . . . . . . . . . 1 1 . . . . 4 5 5 9 10 7 5 4 4 7 8 8 7 9 Wheel 5 | . 25 28 28 28 35 . . . . . . . . . . . . . . . . . . . . . . . . . . . . . . . . . . . Hover 22 | . . . . . . . . . 14 29 30 30 31 32 33 33 33 33 33 29 29 29 29 29 29 29 30 31 30 30 30 30 30 30 31 33 33 33 30 30 Flight 2 | . . . . . . 30 30 30 11 . . . . . . . . . . . . . . . . . . . . . . . . . . . . . . . Device 7 | . . . . . . 7 7 7 7 7 7 7 6 6 6 6 6 6 6 9 11 11 6 11 11 11 14 15 13 5 5 9 10 12 12 15 16 16 15 14 Storage 7 | . 27 24 14 14 9 7 7 7 7 7 7 7 6 6 6 6 6 6 6 5 5 5 5 5 5 5 5 5 5 5 5 5 5 4 4 4 4 4 3 3 Processor 9 | . . . . . 16 21 15 15 10 7 7 7 6 6 6 6 6 6 6 9 11 11 11 11 11 11 10 10 10 14 15 15 15 13 18 16 16 16 15 15 Hackware 11 | . . . . . . 8 15 15 19 23 23 23 20 20 24 20 20 20 20 17 17 17 16 11 11 11 10 10 10 15 15 10 10 8 4 4 4 4 3 3 Protection 3 | . . . . 13 8 . . . . . . . 3 6 1 6 6 6 6 1 . . 4 4 5 5 5 5 5 3 4 4 5 3 4 4 4 4 3 2 Ballistic Gun 4 | . 28 28 28 22 7 . . . . . . . . . . . . . . . . . . 8 11 5 . . . . . . . . . . . . . . Impact Weapon 3 | . . . . . . 6 7 7 7 7 7 2 6 6 5 6 6 6 5 4 5 5 5 . . 4 5 5 5 5 5 4 5 2 2 . . . . . Special Melee Weapon 3 | . . . . . . 7 7 7 7 7 7 7 6 6 5 6 6 6 6 4 5 5 4 1 . . 4 . . . . 5 5 . . . . . . . Naked Turns . | . . . . . . . . . . . . . . . . . . . . . . . . . . . . . . . . . . . . . . . . . Heaviest Build 130 | 10 92 93 89 95 105 20 20 20 20 24 24 27 34 34 46 44 44 44 44 44 49 49 55 62 62 57 71 70 79 80 78 91 90 109 113 122 122 111 125 130 Greatest Support 141 | 32 32 20 20 20 40 20 20 20 24 32 32 32 40 40 44 44 44 44 44 50 50 57 57 57 57 57 70 78 87 87 87 91 91 114 114 128 128 128 128 141 Greatest Overweight (x) 9 | . 9 4 4 4 4 . . . . . . . . 1 1 . . . . . . . . 1 1 . 1 . 1 . . 1 . 1 . . . . . 1 Average Overweight (x) . | . 3 4 4 4 2 . . . . . . . . . . . . . . . . . . . . . . . . . . . . . . . . . . . Largest Inventory Capacity 25 | 8 25 25 25 25 25 25 10 10 10 10 10 10 10 10 15 15 15 15 15 15 15 15 15 15 15 15 20 20 20 20 20 20 20 20 20 20 20 20 20 20 Average Capacity 17 | 7 24 25 25 25 25 9 10 10 10 10 10 10 10 10 14 15 15 15 15 15 15 15 15 15 15 15 15 20 20 20 20 20 20 20 20 20 20 20 20 20 Most Carried 25 | 5 10 17 16 25 25 17 10 10 10 10 10 10 10 10 15 14 14 14 14 15 15 15 15 15 15 15 16 18 20 20 20 20 20 20 20 20 20 20 20 20 Average Carried 14 | 1 5 12 15 22 21 7 9 9 9 9 9 9 9 9 13 14 14 14 14 14 14 14 13 14 15 15 14 17 18 19 19 19 20 19 18 17 19 19 19 18 Final Capacity 25 | 8 25 25 25 25 25 10 10 10 10 10 10 10 10 10 15 15 15 15 15 15 15 15 15 15 15 15 20 20 20 20 20 20 20 20 20 20 20 20 20 20 Final Carried 24 | 1 10 15 16 24 17 9 10 10 10 10 10 10 9 10 14 14 14 14 14 15 15 14 13 15 15 15 16 18 20 20 19 20 20 16 20 19 20 18 20 20 Class Distribution -------------------- 36% | Hacker-Mutant 16% | Hacker-Scout 12% | Mutant 8% | Generator-Sprinter 7% | Scavenger-Mutant 4% | Machinist-Scout Dominant Class ---------------- Mutant | -10/Materials Mutant | -10/Mines Mutant | -10/Exiles Scavenger-Mutant | -9/Mines Scavenger-Mutant | -8/Materials Scout | -7/Factory Hacker-Scout | -7/Waste Hacker-Scout | -7/Factory Hacker-Mutant | -7/Lower Caves Hacker-Mutant | -7/Lower Caves Hacker-Mutant | -7/Zion Hacker-Mutant | -6/Proximity Caves Hacker-Mutant | -6/Factory Hacker-Mutant | -6/Waste Hacker-Mutant | -6/Factory Hacker-Mutant | -6/Lower Caves Hacker-Mutant | -6/Lower Caves Hacker-Mutant | -6/Data Miner Hacker-Mutant | -5/Proximity Caves Hacker-Scout | -5/Factory Hacker-Scout | -5/Waste Hacker-Scout | -5/Factory Hacker-Mutant | -5/Extension Hacker-Mutant | -5/Cetus Hacker-Mutant | -5/Archives Hacker-Scout | -5/Hub_04(d) Hacker-Scout | -4/Factory Machinist-Scout | -4/Waste Machinist-Scout | -4/Factory Hacker-Mutant | -4/Upper Caves Hacker-Mutant | -4/Upper Caves Generator-Mutant | -4/Warlord Generator-Mutant | -3/Proximity Caves Machinist-Sprinter | -3/Research Machinist-Mutant | -3/Testing Generator-Sprinter | -2/Research Generator-Sprinter | -2/Quarantine Generator-Gladiator | -2/Section 7 Generator-Sprinter | -1/Access Generator-Sprinter | -1/Command Resources | -11 -10 -10 -10 -9 -8 -7 -7 -7 -7 -7 -7 -6 -6 -6 -6 -6 -6 -6 -5 -5 -5 -5 -5 -5 -5 -5 -4 -4 -4 -4 -4 -4 -3 -3 -3 -2 -2 -2 -1 -1 ----------- Run | Scr Mat Min Exi Min Mat Fac Was Fac Low Low Zio Pro Fac Was Fac Low Low Dat Pro Fac Was Fac Ext Cet Arc Hub Fac Was Fac Upp Upp War Pro Res Tes Res Qua Sec Acc Com Matter Collected 4839 | 185 281 2 32 197 635 212 20 40 60 20 . 40 116 244 160 20 . . . 176 36 65 57 172 78 16 167 150 234 143 78 161 134 449 112 201 20 . 63 63 Remotely . | . . . . . . . . . . . . . . . . . . . . . . . . . . . . . . . . . . . . . . . . . Salvage Created 6392 | . 456 11 . 110 729 352 . 42 84 104 . 106 150 . 702 . . . 15 196 . 15 190 57 81 16 223 . 354 94 214 . 118 385 . 737 . 32 228 591 Parts 245 | . 28 4 . 1 56 2 . 5 . 2 . 5 1 . 13 . . . 1 9 . . 2 5 4 . 2 . 16 3 3 . . 5 . 31 . 4 9 34 Haulers Intercepted 16 | . 2 . . . 1 2 . . 1 . . . 1 . 1 . . . . 1 . . . . . . . . 3 . . . . 1 . 3 . . . . Recyclers Shooed 5 | . 3 . . . 1 . . . . . . . . . . . . . . . . . 1 . . . . . . . . . . . . . . . . . Parts Field Recycled . | . . . . . . . . . . . . . . . . . . . . . . . . . . . . . . . . . . . . . . . . . Retrieved Matter . | . . . . . . . . . . . . . . . . . . . . . . . . . . . . . . . . . . . . . . . . . Parts Self-Destructed 30 | . . . . . . . . . 14 3 . 5 . . . . . . 4 . . . . . . . . . . 3 1 . . . . . . . . . Prevented . | . . . . . . . . . . . . . . . . . . . . . . . . . . . . . . . . . . . . . . . . . Kills | -11 -10 -10 -10 -9 -8 -7 -7 -7 -7 -7 -7 -6 -6 -6 -6 -6 -6 -6 -5 -5 -5 -5 -5 -5 -5 -5 -4 -4 -4 -4 -4 -4 -3 -3 -3 -2 -2 -2 -1 -1 ------- Run | Scr Mat Min Exi Min Mat Fac Was Fac Low Low Zio Pro Fac Was Fac Low Low Dat Pro Fac Was Fac Ext Cet Arc Hub Fac Was Fac Upp Upp War Pro Res Tes Res Qua Sec Acc Com Combat Hostiles Destroyed 77 | . 7 . . 8 21 . . . . . . 7 . . 3 . . . 2 3 . . 2 4 1 . . . . 4 5 . . 6 . 1 . . . 3 Melee 5 | . . . . . . . . . . . . . . . . . . . . . . . . . . . . . . . . . . 1 . 1 . . . 3 Guns 19 | . 7 . . 6 5 . . . . . . . . . . . . . . . . . . . 1 . . . . . . . . . . . . . . . Cannons 13 | . . . . . 9 . . . . . . 3 . . 1 . . . . . . . . . . . . . . . . . . . . . . . . . AOE 37 | . . . . 2 6 . . . . . . 4 . . 2 . . . 2 3 . . . 4 . . . . . 4 5 . . 5 . . . . . . Classes Destroyed 18 | . 7 . . 1 3 . . . . 2 . 1 . . . . . . . . . . 1 . . . . . . . 1 . 1 . . . . . . 1 Worker 26 | . 2 . . 1 2 2 . 1 . . . . . . 3 . . . . 2 . 1 . . . 1 3 . . . . . . 1 . 4 . . . 3 Builder 8 | . 1 . . . 2 . . . . . . . . . 1 . . . . . . . . . . . . . 3 . . . . . . 1 . . . . Tunneler 6 | . 1 1 . . . 1 . . . . . . . . 1 . . . . 1 . . . . . . 1 . . . . . . . . . . . . . Hauler 16 | . 2 . . . 1 2 . . 1 . . . 1 . 1 . . . . 1 . . . . . . . . 3 . . . . 1 . 3 . . . . Recycler 13 | . . . . . 1 2 . . . . . . . . 4 . . . . . . . 1 . . . 1 . . . . . . . . 1 . . 1 2 Minesweeper 1 | . . . . . . . . . . . . . . . . . . . . . . . . . . . . . . . . . 1 . . . . . . . Operator 7 | . 1 . . . . 1 . . . . . . . . . . . . . 1 . . 1 . . . . . 1 . . . . . . . . 1 . 1 Watcher 14 | . . . . . 2 1 . 1 . . . . 1 . . . . . . . . . . . . . . . 1 . . . . 3 . 2 . . 2 1 Swarmer 41 | . 2 . . . 13 . . . . . . 5 . . 3 . . . 2 3 . . . 4 . . . . . 4 . . . 5 . . . . . . Grunt 16 | . 5 . . . 5 . . . . . . . . . . . . . . . . . . . . . . . . . 4 . . 1 . 1 . . . . Duelist 1 | . . . . . . . . . . . . . . . . . . . . . . . . . . . . . . . 1 . . . . . . . . . Sentry 5 | . . . . . 3 . . . . . . . . . . . . . . . . . . . 1 . . . . . . . . . . . . . . 1 Demolisher 1 | . . . . . . . . . . . . . . . . . . . . . . . 1 . . . . . . . . . . . . . . . . . Hunter 2 | . . . . . . . . . . . . 2 . . . . . . . . . . . . . . . . . . . . . . . . . . . . Programmer 2 | . . . . . . . . . . . . . . . . . . . . . . . . . . . . . . . . . . . . . . . . 2 Samaritan 4 | . . . . . . . . . . 1 . . . . . . . . . . . . . . . . . . . 1 . . 2 . . . . . . . Assembled 8 | . . . . 8 . . . . . . . . . . . . . . . . . . . . . . . . . . . . . . . . . . . . Thug 1 | . . . . . . . . . . . . . . . . . . . . . . . 1 . . . . . . . . . . . . . . . . . Savage 1 | . . . . . . . . . . 1 . . . . . . . . . . . . . . . . . . . . . . . . . . . . . . Best Kill Streak 6 | . 2 1 . 3 4 3 . 1 1 . . 4 1 . 5 . . . 2 4 . 1 1 4 1 1 2 . 3 4 5 . 1 6 . 4 . 1 1 4 Combat Bots Only 5 | . 2 . . 3 4 . . . . . . 4 . . 3 . . . 2 3 . . 1 4 1 . . . . 4 5 . . 5 . 1 . . . 1 Max Kills in Single Turn 4 | . 1 1 . 1 3 1 . 1 1 1 . 4 1 . 2 . . . 1 2 . 1 1 4 1 1 1 . 1 3 2 . 1 3 . 1 . 1 1 1 Gunslinging . | . . . . . . . . . . . . . . . . . . . . . . . . . . . . . . . . . . . . . . . . . Exploded 4 | . . . . 1 3 . . . . . . 4 . . 1 . . . 1 2 . . . 4 . . . . . 3 2 . . 3 . . . . . . Melee 1 | . . . . . . . . . . . . . . . . . . . . . . . . . . . . . . . . . . 1 . 1 . . . 1 Uniques/NPCs Destroyed . | . . . . . . . . . . . . . . . . . . . . . . . . . . . . . . . . . . . . . . . . . Combat | -11 -10 -10 -10 -9 -8 -7 -7 -7 -7 -7 -7 -6 -6 -6 -6 -6 -6 -6 -5 -5 -5 -5 -5 -5 -5 -5 -4 -4 -4 -4 -4 -4 -3 -3 -3 -2 -2 -2 -1 -1 -------- Run | Scr Mat Min Exi Min Mat Fac Was Fac Low Low Zio Pro Fac Was Fac Low Low Dat Pro Fac Was Fac Ext Cet Arc Hub Fac Was Fac Upp Upp War Pro Res Tes Res Qua Sec Acc Com Damage Taken 8025 | . 316 . . 284 1339 . . . . . . 74 . . 160 . . . 128 104 . . 396 97 198 154 40 . 603 52 172 . . 1024 35 227 139 591 . 1892 Core 1134 | . 102 . . 24 143 . . . . . . 22 . . 21 . . . 23 55 . . 39 . 27 . 17 . 60 . 60 . . 154 . . . 41 . 346 Absorbed by Shields 315 | . . . . . . . . . . . . . . . . . . . . . . . 7 . . . . . . . . . . 308 . . . . . . Regen/Repaired (Parts) 1150 | . . . . . . . . . . . 74 . . . 170 . . . . 35 . 192 . . . . 132 . 109 . . . . . . . 47 214 3 174 Core Remaining (%) 85 | 100 . . . 49 74 . . . . . . 96 . . . . . . 94 . . . . . . 87 . . . . . . 88 . 88 . . 97 . . Volleys Fired 252 | . 88 2 . 31 81 . . . . . . 8 . . 4 . . . 2 2 . . . 7 14 1 . . . 2 6 . . 2 . . . . . 2 Largest 2 | . 2 2 . 2 2 . . . . . . 1 . . 1 . . . 1 1 . . . 2 2 1 . . . 1 1 . . 1 . . . . . 1 Hottest 70 | . 40 40 . 59 67 . . . . . . . . . . . . . 43 46 . . . 70 70 35 . . . 46 46 . . 46 . . . . . 70 Shots Fired 450 | . 176 4 . 59 141 . . . . . . 8 . . 4 . . . 2 2 . . . 13 28 1 . . . 2 6 . . 2 . . . . . 2 Gun 343 | . 176 4 . 54 68 . . . . . . . . . . . . . . . . . . 12 28 1 . . . . . . . . . . . . . . Cannon 63 | . . . . 2 60 . . . . . . . . . . . . . . . . . . . . . . . . . . . . . . . . . . 1 Launcher 31 | . . . . 3 13 . . . . . . . . . . . . . 2 2 . . . 1 . . . . . 2 6 . . 2 . . . . . . Special 13 | . . . . . . . . . . . . 8 . . 4 . . . . . . . . . . . . . . . . . . . . . . . . 1 Kinetic 406 | . 176 4 . 56 128 . . . . . . . . . . . . . . . . . . 12 28 1 . . . . . . . . . . . . . 1 Thermal . | . . . . . . . . . . . . . . . . . . . . . . . . . . . . . . . . . . . . . . . . . Explosive 31 | . . . . 3 1 . . . . . . 8 . . 4 . . . 2 2 . . . 1 . . . . . 2 6 . . 2 . . . . . . Electromagnetic 12 | . . . . . 12 . . . . . . . . . . . . . . . . . . . . . . . . . . . . . . . . . . . Robot Hit Streak 22 | . 15 4 . 7 22 . . . . . . 3 . . 5 . . . . . . . . 2 9 . . . . . . . . 6 . . . . . 7 Robot Miss Streak 5 | . 5 1 . 5 4 . . . . . . 2 . . 1 . . . . . . . . 2 3 . . . . . . . . . . . . . . . Penetration Max . | . . . . . . . . . . . . . . . . . . . . . . . . . . . . . . . . . . . . . . . . . Secondary Targets 1 | . . . . 1 . . . . . . . . . . . . . . . . . . . . . . . . . . . . . . . . . . . . Max Gunslinging Chain 1 | . . . . 1 . . . . . . . . . . . . . . . . . . . . . . . . . . . . . . . . . . . . Shots Hit Robots 405 | . 110 3 . 27 92 12 . 3 2 2 . 4 3 . 15 . . . . 4 . 1 27 6 21 2 6 . 14 1 . . 3 8 . 18 . 2 4 15 Core Hits 192 | . 35 3 . 17 49 1 . 1 . 1 . 7 . . 5 . . . 1 5 . . . 5 6 . 1 . 8 4 17 . . 7 . 9 . 1 2 7 Critical Kills 7 | . 1 . . . . 1 . . . 1 . . . . 1 . . . . . . . . . 1 . . . 2 . . . . . . . . . . . Critical Parts Destroyed 14 | . . . . . . 3 . . 1 . . . 2 . 2 . . . . . . . 1 . 3 . 1 . . . . . . 1 . . . . . . Critical Strikes 34 | . 1 . . . 3 4 . . 1 1 . . 2 . 3 . . . . . . . 1 1 6 . 1 . 3 . . . . 1 . 5 . . 1 . Destroy 8 | . 1 . . . . . . . . . . . . . . . . . . . . . . 1 6 . . . . . . . . . . . . . . . Blast 3 | . . . . . 3 . . . . . . . . . . . . . . . . . . . . . . . . . . . . . . . . . . . Smash 16 | . . . . . . 4 . . 1 1 . . 2 . 3 . . . . . . . 1 . . . 1 . 2 . . . . 1 . . . . . . Impale 7 | . . . . . . . . . . . . . . . . . . . . . . . . . . . . . 1 . . . . . . 5 . . 1 . Melee Attacks 497 | . . . . . . 21 . 9 6 11 1 . 18 . 82 1 . . 4 37 . 8 31 . . 8 32 1 48 5 8 . 5 26 6 42 7 19 28 33 Impact 310 | . . . . . . 21 . 9 6 11 1 . 18 . 82 1 . . 4 37 . 8 18 . . 8 31 1 12 4 8 . 5 23 2 . . . . . Slashing 70 | . . . . . . . . . . . . . . . . . . . . . . . . . . . . . . . . . . . . . 5 19 23 23 Piercing 103 | . . . . . . . . . . . . . . . . . . . . . . . . . . . . . 36 1 . . . 3 4 42 2 . 5 10 Sneak Attacks 78 | . . . . . . 7 . 1 . 2 . . 1 . 9 . . . . 3 . 1 18 . . 1 6 . 5 1 . . 3 2 . 10 . . 1 7 Combat Hostiles 3 | . . . . . . . . . . . . . . . . . . . . . . . 2 . . . . . . . . . . . . . . . . 1 Follow-up Attacks 4 | . . . . . . . . . . . . . . . . . . . . . . . . . . . . . . . . . . . . . . . 1 3 Damage Inflicted 19720 | . 909 25 . 360 1899 902 . 254 120 145 . 783 125 . 1607 . . . 240 782 . 112 926 491 618 113 496 . 939 510 1204 . 305 1177 . 1958 . 230 575 1915 Guns 2374 | . 909 25 . 204 475 . . . . . . . . . . . . . . . . . . 143 618 . . . . . . . . . . . . . . . Cannons 880 | . . . . . 880 . . . . . . . . . . . . . . . . . . . . . . . . . . . . . . . . . . . Explosions 5349 | . . . . 156 544 . . . . . . 596 . . 625 . . . 240 490 . . . 348 . . . . . 433 1204 . . 713 . . . . . . Melee 10827 | . . . . . . 902 . 254 120 145 . . 125 . 879 . . . . 292 . 112 926 . . 113 496 . 939 77 . . 305 464 . 1958 . 230 575 1915 Ramming . | . . . . . . . . . . . . . . . . . . . . . . . . . . . . . . . . . . . . . . . . . Kinetic 3254 | . 909 25 . 204 1355 . . . . . . . . . . . . . . . . . . 143 618 . . . . . . . . . . . . . . . Thermal 19 | . . . . . 19 . . . . . . . . . . . . . . . . . . . . . . . . . . . . . . . . . . . Explosive 4899 | . . . . 156 94 . . . . . . 596 . . 625 . . . 240 490 . . . 348 . . . . . 433 1204 . . 713 . . . . . . Electromagnetic 431 | . . . . . 431 . . . . . . . . . . . . . . . . . . . . . . . . . . . . . . . . . . . Impact 5397 | . . . . . . 902 . 254 120 145 . . 125 . 879 . . . . 292 . 112 926 . . 113 496 . 314 . . . 305 414 . . . . . . Slashing 2840 | . . . . . . . . . . . . 187 . . 103 . . . . . . . . . . . . . . . . . . . . . . 230 500 1820 Piercing 2880 | . . . . . . . . . . . . . . . . . . . . . . . . . . . . . 625 77 . . . 50 . 1958 . . 75 95 Highest Corruption 27 | . . . . . 27 . . . . . . . . . . . . . . 1 1 1 1 1 1 1 . 9 18 18 18 18 . 11 11 . 1 2 . 15 Average Corruption 8 | . . . . . 12 . . . . . . . . . . . . . . 1 1 1 1 1 1 1 . 9 18 18 18 18 . 8 11 . 1 1 . 2 Corruption Purged . | . . . . . . . . . . . . . . . . . . . . . . . . . . . . . . . . . . . . . . . . . Corruption Blocked 13 | . . . . . . . . . . . . . . . . . . . . . . . . . . . . . . . . . . . . 13 . . . . Effects 132 | . . . . . 12 . . . . . . . . . . . . . . . 3 3 8 4 . 1 . 5 44 18 19 . . 2 8 . . 3 . 2 Message Errors 22 | . . . . . 1 . . . . . . . . . . . . . . . 2 . 1 . . . . 2 7 5 3 . . . 1 . . . . . Matter Fused 35 | . . . . . 2 . . . . . . . . . . . . . . . 1 2 1 1 . . . . 11 4 6 . . . 5 . . 2 . . Heat Flow Errors 20 | . . . . . 1 . . . . . . . . . . . . . . . . . 2 . . . . 1 10 4 2 . . . . . . . . . Energy Discharges 19 | . . . . . 2 . . . . . . . . . . . . . . . . 1 2 1 . 1 . . 7 2 1 . . 1 . . . 1 . . Parts Rejected 1 | . . . . . . . . . . . . . . . . . . . . . . . . . . . . . 1 . . . . . . . . . . . Data Loss (minor) 16 | . . . . . 1 . . . . . . . . . . . . . . . . . 2 1 . . . 1 3 2 4 . . . 1 . . . . 1 Data Loss (major) 9 | . . . . . 1 . . . . . . . . . . . . . . . . . . . . . . 1 4 1 . . . 1 . . . . . 1 Misfires 1 | . . . . . 1 . . . . . . . . . . . . . . . . . . . . . . . . . . . . . . . . . . . Alerts 4 | . . . . . 1 . . . . . . . . . . . . . . . . . . 1 . . . . . . 2 . . . . . . . . . Misdirections 4 | . . . . . 1 . . . . . . . . . . . . . . . . . . . . . . . 1 . 1 . . . 1 . . . . . Weapon Failures 1 | . . . . . 1 . . . . . . . . . . . . . . . . . . . . . . . . . . . . . . . . . . . Overload Shots . | . . . . . . . . . . . . . . . . . . . . . . . . . . . . . . . . . . . . . . . . . Overflow Damage 4667 | . . . . 24 77 478 . 125 48 38 . 20 95 . 572 . . . 36 192 . 72 288 73 . 35 312 . 64 63 10 . 226 236 . 779 . 62 250 492 Projectiles 10 | . . . . . 2 . . . . . . . . . 8 . . . . . . . . . . . . . . . . . . . . . . . . . Explosions 484 | . . . . 24 75 . . . . . . 20 . . 146 . . . 36 . . . . 73 . . . . . 63 10 . . 37 . . . . . . Melee 4173 | . . . . . . 478 . 125 48 38 . . 95 . 418 . . . . 192 . 72 288 . . 35 312 . 64 . . . 226 199 . 779 . 62 250 492 Knockbacks 28 | . . . . . 10 2 . . . . . . . . 5 . . . . 2 . . 3 . . . 1 . 1 . . . 1 3 . . . . . . Impact 18 | . . . . . . 2 . . . . . . . . 5 . . . . 2 . . 3 . . . 1 . 1 . . . 1 3 . . . . . . Kinetic 9 | . . . . . 9 . . . . . . . . . . . . . . . . . . . . . . . . . . . . . . . . . . . Secondary 1 | . . . . . 1 . . . . . . . . . . . . . . . . . . . . . . . . . . . . . . . . . . . Self-Inflicted Damage 298 | . . . . 40 258 . . . . . . . . . . . . . . . . . . . . . . . . . . . . . . . . . . . Shots 9 | . . . . 1 8 . . . . . . . . . . . . . . . . . . . . . . . . . . . . . . . . . . . Rammed . | . . . . . . . . . . . . . . . . . . . . . . . . . . . . . . . . . . . . . . . . . Targets Rammed . | . . . . . . . . . . . . . . . . . . . . . . . . . . . . . . . . . . . . . . . . . Kicked . | . . . . . . . . . . . . . . . . . . . . . . . . . . . . . . . . . . . . . . . . . Crushed . | . . . . . . . . . . . . . . . . . . . . . . . . . . . . . . . . . . . . . . . . . Highest Temperature 494 | . 25 . . 26 298 . . . . . . . . . . . . . . 4 . . 245 41 121 4 297 242 494 332 372 259 . 10 . 238 . 50 . 4 Average Temperature 105 | . 10 . . 8 54 . . . . . . . . . . . . . . 2 . . 136 16 62 3 171 38 163 118 144 137 . 1 . 51 . 11 . 4 Received Heat Transfer 994 | . 144 . . 9 387 . . . . . . . . . 21 . . . 39 9 . . 27 18 18 27 . . 27 . 51 . . 82 . 18 . 81 . 36 Effects 36 | . . . . . 3 . . . . . . . . . . . . . . . . . . . . . 2 . 13 4 11 2 . . . 1 . . . . Shutdowns 8 | . . . . . . . . . . . . . . . . . . . . . . . . . . . . . 6 . 2 . . . . . . . . . Energy Bleed 9 | . . . . . . . . . . . . . . . . . . . . . . . . . . . 2 . 2 1 3 . . . . 1 . . . . Interference 18 | . . . . . 3 . . . . . . . . . . . . . . . . . . . . . . . 4 3 6 2 . . . . . . . . Damage (minor) 1 | . . . . . . . . . . . . . . . . . . . . . . . . . . . . . 1 . . . . . . . . . . . Siege Activations . | . . . . . . . . . . . . . . . . . . . . . . . . . . . . . . . . . . . . . . . . . Robots Corrupted 1 | . . . . . 1 . . . . . . . . . . . . . . . . . . . . . . . . . . . . . . . . . . . Combat Hostiles 1 | . . . . . 1 . . . . . . . . . . . . . . . . . . . . . . . . . . . . . . . . . . . Parts Fried 33 | . . . . . 3 4 . 1 . . . . 1 . 8 . . . . 5 . 1 1 . . . 4 . 2 . . . 1 2 . . . . . . Impact Corruptions 91 | . . . . . . 18 . 3 1 5 . . 4 . 14 . . . . 8 . 3 7 . . 2 6 . 3 . . . 9 8 . . . . . . Robots Melted . | . . . . . . . . . . . . . . . . . . . . . . . . . . . . . . . . . . . . . . . . . Combat Hostiles . | . . . . . . . . . . . . . . . . . . . . . . . . . . . . . . . . . . . . . . . . . Parts Melted . | . . . . . . . . . . . . . . . . . . . . . . . . . . . . . . . . . . . . . . . . . Heat Transferred 50 | . . . . . 50 . . . . . . . . . . . . . . . . . . . . . . . . . . . . . . . . . . . Parts Sabotaged . | . . . . . . . . . . . . . . . . . . . . . . . . . . . . . . . . . . . . . . . . . Parts Stolen . | . . . . . . . . . . . . . . . . . . . . . . . . . . . . . . . . . . . . . . . . . Parts Stripped . | . . . . . . . . . . . . . . . . . . . . . . . . . . . . . . . . . . . . . . . . . Power Chain Reactions 1 | . . . . . 1 . . . . . . . . . . . . . . . . . . . . . . . . . . . . . . . . . . . Missiles Intercepted . | . . . . . . . . . . . . . . . . . . . . . . . . . . . . . . . . . . . . . . . . . Alert | -11 -10 -10 -10 -9 -8 -7 -7 -7 -7 -7 -7 -6 -6 -6 -6 -6 -6 -6 -5 -5 -5 -5 -5 -5 -5 -5 -4 -4 -4 -4 -4 -4 -3 -3 -3 -2 -2 -2 -1 -1 ------- Run | Scr Mat Min Exi Min Mat Fac Was Fac Low Low Zio Pro Fac Was Fac Low Low Dat Pro Fac Was Fac Ext Cet Arc Hub Fac Was Fac Upp Upp War Pro Res Tes Res Qua Sec Acc Com Peak Influence 1453 | . 194 7 . 44 488 294 80 367 . . . . 120 3 139 . . . . 220 35 477 1453 1262 671 533 417 161 945 . . . . 469 314 557 629 1022 698 942 Initial 813 | . . 2 . . 7 200 80 56 . . . . 18 3 2 . . . . 65 35 24 203 813 501 234 256 119 112 . . . . 3 199 176 312 353 612 292 Average 275 | . 66 1 . 9 225 207 80 164 . . . . 34 3 41 . . . . 110 35 262 881 1091 602 317 328 139 635 . . . . 134 256 352 434 538 609 692 Maximum Alert Level 4 | . . . . . 2 1 . 1 . . . . . . . . . . . 1 . 2 4 4 2 2 2 . 3 . . . . 2 1 2 2 3 2 3 Low Security (%) 52 | 100 100 100 . 100 42 37 100 60 . . . . 100 100 100 . . . . 97 100 30 . . . . . 100 5 . . . . 66 7 9 . . . . Level 1 20 | . . . . . 39 62 . 39 . . . . . . . . . . . 2 . 42 11 . . 72 80 . . . . . . 29 92 57 48 31 . 4 Level 2 14 | . . . . . 17 . . . . . . . . . . . . . . . . 26 2 . 100 27 19 . 45 . . . . 3 . 33 51 44 100 22 Level 3 9 | . . . . . . . . . . . . . . . . . . . . . . . 71 23 . . . . 49 . . . . . . . . 23 . 72 Level 4 2 | . . . . . . . . . . . . . . . . . . . . . . . 15 76 . . . . . . . . . . . . . . . . Level 5 . | . . . . . . . . . . . . . . . . . . . . . . . . . . . . . . . . . . . . . . . . . High Security . | . . . . . . . . . . . . . . . . . . . . . . . . . . . . . . . . . . . . . . . . . Max Security . | . . . . . . . . . . . . . . . . . . . . . . . . . . . . . . . . . . . . . . . . . Squads Dispatched 60 | . 1 . . . 1 3 . 5 . . . . 4 . 4 . . . 1 2 . 2 3 . . 3 4 . 13 . . . . 3 1 2 5 2 . 1 Investigation 19 | . . . . . . 3 . 3 . . . . 3 . 2 . . . . 1 . . . . . . 3 . 3 . . . . . . . 1 . . . Extermination 8 | . . . . . . . . . . . . . . . 1 . . . . 1 . . . . . . 1 . 1 . . . . 2 1 . . . . 1 Reinforcement 28 | . 1 . . . 1 . . 2 . . . . 1 . 1 . . . . . . 2 2 . . 3 . . 7 . . . . 1 . 2 3 2 . . Assault 4 | . . . . . . . . . . . . . . . . . . . 1 . . . 1 . . . . . 2 . . . . . . . . . . . Garrison 1 | . . . . . . . . . . . . . . . . . . . . . . . . . . . . . . . . . . . . . 1 . . . Intercept . | . . . . . . . . . . . . . . . . . . . . . . . . . . . . . . . . . . . . . . . . . Searches Triggered 1 | . . . . . . . . . . . . . . . . . . . . . . . . . . . . . . . . . . . . . . . 1 . Data Miner Redirects 1 | . . . . . . . . . . . . . . . . . . . . . . . . . . . . . 1 . . . . . . . . . . . Construction Impeded 1 | . . . . . . . . . . . . . . . . . . . . . . . 1 . . . . . . . . . . . . . . . . . Haulers Reinforced 1 | . . . . . . . . . . . . . . . . . . . . . . . . . . . . . . . . . . . . 1 . . . . Active Scanning Responses . | . . . . . . . . . . . . . . . . . . . . . . . . . . . . . . . . . . . . . . . . . Cargo Convoy Interrupts . | . . . . . . . . . . . . . . . . . . . . . . . . . . . . . . . . . . . . . . . . . Stealth | -11 -10 -10 -10 -9 -8 -7 -7 -7 -7 -7 -7 -6 -6 -6 -6 -6 -6 -6 -5 -5 -5 -5 -5 -5 -5 -5 -4 -4 -4 -4 -4 -4 -3 -3 -3 -2 -2 -2 -1 -1 --------- Run | Scr Mat Min Exi Min Mat Fac Was Fac Low Low Zio Pro Fac Was Fac Low Low Dat Pro Fac Was Fac Ext Cet Arc Hub Fac Was Fac Upp Upp War Pro Res Tes Res Qua Sec Acc Com Distress Signals 25 | . 2 . . 2 3 . . . . . . . . . 2 . . . . 1 . 1 2 2 . 1 3 . 1 . . . . . . . . 1 2 2 Communications Jammed 34 | . . . . . . . . . . . . . . . . . . . . . . . . . . . . . . . . . . . . 19 7 2 6 . Distress Signals 34 | . . . . . . . . . . . . . . . . . . . . . . . . . . . . . . . . . . . . 19 7 2 6 . Times Spotted 445 | . 24 . . 13 32 5 . 6 2 4 . 5 6 . 21 . . . 14 11 . 9 30 14 8 17 16 2 39 1 8 4 . 36 5 26 17 36 6 28 Peak Tracking Total 25 | . 4 . . 7 4 1 . 3 2 4 . 4 3 . 5 . . . 10 4 . 2 7 5 1 9 6 2 11 1 5 4 . 14 2 6 11 25 3 19 Tactical Retreats 61 | . 1 . . 1 5 . . . . . . . . . 7 . . . 1 6 . . . . . 1 4 . 7 1 2 . . 6 . 6 3 5 2 3 Traps | -11 -10 -10 -10 -9 -8 -7 -7 -7 -7 -7 -7 -6 -6 -6 -6 -6 -6 -6 -5 -5 -5 -5 -5 -5 -5 -5 -4 -4 -4 -4 -4 -4 -3 -3 -3 -2 -2 -2 -1 -1 ------- Run | Scr Mat Min Exi Min Mat Fac Was Fac Low Low Zio Pro Fac Was Fac Low Low Dat Pro Fac Was Fac Ext Cet Arc Hub Fac Was Fac Upp Upp War Pro Res Tes Res Qua Sec Acc Com Traps Triggered 22 | . . . . . . 1 . . . . . . 1 . 2 . . . . 3 . . 2 . . . 6 . 1 . . . . 2 1 . . 1 . 2 Indirectly . | . . . . . . . . . . . . . . . . . . . . . . . . . . . . . . . . . . . . . . . . . Trap Hack Attempts . | . . . . . . . . . . . . . . . . . . . . . . . . . . . . . . . . . . . . . . . . . Triggered . | . . . . . . . . . . . . . . . . . . . . . . . . . . . . . . . . . . . . . . . . . Disarmed . | . . . . . . . . . . . . . . . . . . . . . . . . . . . . . . . . . . . . . . . . . Reprogrammed . | . . . . . . . . . . . . . . . . . . . . . . . . . . . . . . . . . . . . . . . . . Reused 2 | . . . . . 1 . . . . 1 . . . . . . . . . . . . . . . . . . . . . . . . . . . . . . Traps Extracted . | . . . . . . . . . . . . . . . . . . . . . . . . . . . . . . . . . . . . . . . . . Installed 3 | . . . . . 2 . . . . 1 . . . . . . . . . . . . . . . . . . . . . . . . . . . . . . Triggered 12 | . . . . . 1 . . . . 1 . . . . . . . . 1 . . . . . . . . . . . . 8 . 1 . . . . . . Most Traps Carried 4 | . . 4 4 4 4 2 2 2 1 1 . . . . . . . . . . . . . . . . . . . . . . . . . . . . . . Machines | -11 -10 -10 -10 -9 -8 -7 -7 -7 -7 -7 -7 -6 -6 -6 -6 -6 -6 -6 -5 -5 -5 -5 -5 -5 -5 -5 -4 -4 -4 -4 -4 -4 -3 -3 -3 -2 -2 -2 -1 -1 ---------- Run | Scr Mat Min Exi Min Mat Fac Was Fac Low Low Zio Pro Fac Was Fac Low Low Dat Pro Fac Was Fac Ext Cet Arc Hub Fac Was Fac Upp Upp War Pro Res Tes Res Qua Sec Acc Com Machines Disabled 29 | . . . . . 4 . . . . . . . . . 2 . . . . 1 . 1 2 1 2 2 . . 3 . . . . . 3 . 1 3 . 4 Max in Single Turn 3 | . . . . . 3 . . . . . . . . . 2 . . . . 1 . . . . 1 . . . . . . . . . 1 . 1 1 . 2 Garrison Access 17 | . . . . . 1 1 . 1 . . . . . . 3 . . . . 2 . 1 . . . . 2 . 2 . . . . . . 2 1 1 . . Phase Generator 1 | . . . . . . . . . . . . . . . . . . . . . . . . . . . . . . . . . . . . . . . . 1 Energy Cycler 1 | . . . . . . . . . . . . . . . . . . . . . . . 1 . . . . . . . . . . . . . . . . . Machines Sabotaged . | . . . . . . . . . . . . . . . . . . . . . . . . . . . . . . . . . . . . . . . . . Garrisons Compromised . | . . . . . . . . . . . . . . . . . . . . . . . . . . . . . . . . . . . . . . . . . Overloaded Fab Kills . | . . . . . . . . . . . . . . . . . . . . . . . . . . . . . . . . . . . . . . . . . Hacking | -11 -10 -10 -10 -9 -8 -7 -7 -7 -7 -7 -7 -6 -6 -6 -6 -6 -6 -6 -5 -5 -5 -5 -5 -5 -5 -5 -4 -4 -4 -4 -4 -4 -3 -3 -3 -2 -2 -2 -1 -1 --------- Run | Scr Mat Min Exi Min Mat Fac Was Fac Low Low Zio Pro Fac Was Fac Low Low Dat Pro Fac Was Fac Ext Cet Arc Hub Fac Was Fac Upp Upp War Pro Res Tes Res Qua Sec Acc Com Machines Accessed 152 | . 1 1 2 . 4 12 . 9 1 1 . . 7 . 19 . 1 4 . 11 . 11 3 1 . 2 19 . 10 . 1 2 . 5 5 3 3 6 4 4 Terminals 85 | . 1 . . . 3 6 . 7 . . . . 4 . 9 . . . . 5 . 7 3 1 . 2 10 . 5 . . . . 4 4 1 2 4 3 4 Fabricators 17 | . . . . . . 3 . 1 . . . . 3 . 2 . . . . 2 . . . . . . 4 . 2 . . . . . . . . . . . Repair Stations 11 | . . . . . . . . . . . . . . . 2 . . . . 1 . 2 . . . . 3 . 2 . . . . 1 . . . . . . Recycling Units . | . . . . . . . . . . . . . . . . . . . . . . . . . . . . . . . . . . . . . . . . . Scanalyzers 6 | . . . . . . 1 . . . . . . . . 3 . . . . . . 1 . . . . . . . . . . . . . . . 1 . . Garrison Access 20 | . . . . . 1 2 . 1 . . . . . . 3 . . . . 3 . 1 . . . . 2 . 1 . . . . . 1 2 1 1 1 . Total Hacks 396 | . 2 1 2 . 9 32 . 32 1 1 . . 24 . 58 . 1 27 . 22 . 24 12 2 . 3 51 . 31 . 1 2 . 11 8 9 5 14 6 5 Successful 233 | . 1 1 2 . 7 16 . 13 1 1 . . 18 . 43 . 1 27 . 11 . 10 6 1 . 1 31 . 18 . 1 2 . 3 3 4 2 6 3 . Failed 163 | . 1 . . . 2 16 . 19 . . . . 6 . 15 . . . . 11 . 14 6 1 . 2 20 . 13 . . . . 8 5 5 3 8 3 5 Catastrophic 19 | . . . . . . . . 1 . . . . . . 1 . . . . . . 1 . . . . 2 . 4 . . . . 2 2 1 1 2 1 1 Database Lockouts . | . . . . . . . . . . . . . . . . . . . . . . . . . . . . . . . . . . . . . . . . . Manual 109 | . . . 1 . 2 12 . 7 . . . . 11 . 16 . . . . 12 . 4 4 1 . 1 18 . 5 . . 1 . 1 . 1 . 7 2 3 Terminals 219 | . 2 . . . 8 13 . 23 . . . . 12 . 31 . . . . 12 . 16 12 2 . 3 29 . 10 . . . . 9 6 7 3 11 5 5 Fabricators 57 | . . . . . . 12 . 6 . . . . 12 . 5 . . . . 3 . . . . . . 11 . 8 . . . . . . . . . . . Repair Stations 35 | . . . . . . . . . . . . . . . 9 . . . . 3 . 4 . . . . 7 . 10 . . . . 2 . . . . . . Recycling Units . | . . . . . . . . . . . . . . . . . . . . . . . . . . . . . . . . . . . . . . . . . Scanalyzers 17 | . . . . . . 3 . . . . . . . . 9 . . . . . . 3 . . . . . . . . . . . . . . . 2 . . Garrison Access 32 | . . . . . 1 4 . 3 . . . . . . 4 . . . . 4 . 1 . . . . 4 . 3 . . . . . 2 2 2 1 1 . Terminal Hacks 106 | . 1 1 2 . 4 3 . 5 1 1 . . 3 . 15 . 1 27 . 3 . 4 4 1 . 1 12 . 3 . 1 2 . 3 3 1 1 1 2 . Record 14 | . . . 2 . . . . . . . . . . . . . . 11 . . . . . . . . . . . . . . . . . 1 . . . . Part Schematic 13 | . . . . . . 2 . . . . . . . . 1 . . 9 . . . . . . . . 1 . . . . . . . . . . . . . Robot Schematic 4 | . . . . . . . . . . . . . . . . . . 4 . . . . . . . . . . . . . . . . . . . . . . Robot Analysis 6 | . . . . . . . . 1 . . . . 1 . 3 . . . . . . . . . . . 1 . . . . . . . . . . . . . Prototype ID Bank 17 | . 1 . . . 1 . . 2 . . . . 2 . 1 . . 3 . 1 . 2 . . . . 2 . . . . . . . 2 . . . . . Open Door 8 | . . 1 . . . . . . 1 1 . . . . . . 1 . . . . . . 1 . . . . . . 1 2 . . . . . . . . Branch Access Points 4 | . . . . . . . . 1 . . . . . . 1 . . . . . . . . . . . . . 1 . . . . 1 . . . . . . Terminal Index 3 | . . . . . . . . . . . . . . . . . . . . . . 1 1 . . . 1 . . . . . . . . . . . . . Fabricator Index 1 | . . . . . . . . . . . . . . . . . . . . . . . . . . . 1 . . . . . . . . . . . . . Repair Station Index 1 | . . . . . . . . . . . . . . . . . . . . . . . . . . . 1 . . . . . . . . . . . . . Alert Level 1 | . . . . . . . . . . . . . . . . . . . . . . . 1 . . . . . . . . . . . . . . . . . Unreport Threat 2 | . . . . . . . . . . . . . . . 1 . . . . . . . . . . . . . 1 . . . . . . . . . . . Locate Traps 22 | . . . . . 1 1 . . . . . . . . 4 . . . . 1 . 1 2 . . 1 4 . 1 . . . . 2 1 . 1 1 1 . Transport Status 1 | . . . . . 1 . . . . . . . . . . . . . . . . . . . . . . . . . . . . . . . . . . . Recall Extermination 1 | . . . . . . . . . . . . . . . 1 . . . . . . . . . . . . . . . . . . . . . . . . . Recall Reinforcements 1 | . . . . . . . . . . . . . . . 1 . . . . . . . . . . . . . . . . . . . . . . . . . Hauler Manifests 3 | . . . . . . . . 1 . . . . . . 1 . . . . . . . . . . . 1 . . . . . . . . . . . . . Zone Layout 4 | . . . . . 1 . . . . . . . . . 1 . . . . 1 . . . . . . . . . . . . . . . . . . 1 . Fabricator Hacks 31 | . . . . . . 6 . 3 . . . . 8 . 4 . . . . . . . . . . . 5 . 5 . . . . . . . . . . . Network Status 4 | . . . . . . 2 . . . . . . 1 . 1 . . . . . . . . . . . . . . . . . . . . . . . . . Load Schematic 16 | . . . . . . 2 . 2 . . . . 4 . 2 . . . . . . . . . . . 3 . 3 . . . . . . . . . . . Build 11 | . . . . . . 2 . 1 . . . . 3 . 1 . . . . . . . . . . . 2 . 2 . . . . . . . . . . . Repair Station Hacks 21 | . . . . . . . . . . . . . . . 6 . . . . 2 . 3 . . . . 5 . 5 . . . . . . . . . . . Scan Component 12 | . . . . . . . . . . . . . . . 3 . . . . 1 . 2 . . . . 3 . 3 . . . . . . . . . . . Repair 9 | . . . . . . . . . . . . . . . 3 . . . . 1 . 1 . . . . 2 . 2 . . . . . . . . . . . Recycling Unit Hacks . | . . . . . . . . . . . . . . . . . . . . . . . . . . . . . . . . . . . . . . . . . Scanalyzer 15 | . . . . . . 3 . . . . . . . . 9 . . . . . . 1 . . . . . . . . . . . . . . . 2 . . Insert Component 8 | . . . . . . 1 . . . . . . . . 4 . . . . . . 1 . . . . . . . . . . . . . . . 2 . . Analyze 7 | . . . . . . 2 . . . . . . . . 5 . . . . . . . . . . . . . . . . . . . . . . . . . Garrison Access Hacks 16 | . . . . . 1 1 . 1 . . . . . . 3 . . . . 2 . 1 . . . . 2 . 1 . . . . . . 2 1 1 . . Seal Access 16 | . . . . . 1 1 . 1 . . . . . . 3 . . . . 2 . 1 . . . . 2 . 1 . . . . . . 2 1 1 . . Unauthorized Hacks 44 | . . . . . 2 3 . 4 . . . . 7 . 6 . . . . 4 . 1 2 . . . 7 . 4 . . . . . . 1 . 2 1 . Terminals 31 | . . . . . 2 1 . 3 . . . . 4 . 5 . . . . 3 . 1 2 . . . 4 . 2 . . . . . . 1 . 2 1 . Track 9 | . . . . . 2 . . 1 . . . . . . 2 . . . . . . 1 1 . . . . . 1 . . . . . . . . 1 . . Assimilate 9 | . . . . . . 1 . 1 . . . . 2 . . . . . . 1 . . . . . . 1 . 1 . . . . . . 1 . . 1 . Botnet 13 | . . . . . . . . 1 . . . . 2 . 3 . . . . 2 . . 1 . . . 3 . . . . . . . . . . 1 . . Fabricators 12 | . . . . . . 2 . 1 . . . . 3 . 1 . . . . . . . . . . . 3 . 2 . . . . . . . . . . . Report 2 | . . . . . . 1 . . . . . . . . . . . . . . . . . . . . . . 1 . . . . . . . . . . . Prioritize 2 | . . . . . . . . . . . . . 1 . . . . . . . . . . . . . 1 . . . . . . . . . . . . . Liberate 2 | . . . . . . . . . . . . . . . . . . . . . . . . . . . 1 . 1 . . . . . . . . . . . Recompile 6 | . . . . . . 1 . 1 . . . . 2 . 1 . . . . . . . . . . . 1 . . . . . . . . . . . . . Repair Stations . | . . . . . . . . . . . . . . . . . . . . . . . . . . . . . . . . . . . . . . . . . Recycling Units . | . . . . . . . . . . . . . . . . . . . . . . . . . . . . . . . . . . . . . . . . . Scanalyzers . | . . . . . . . . . . . . . . . . . . . . . . . . . . . . . . . . . . . . . . . . . Garrison Access 1 | . . . . . . . . . . . . . . . . . . . . 1 . . . . . . . . . . . . . . . . . . . . Reprogram 1 | . . . . . . . . . . . . . . . . . . . . 1 . . . . . . . . . . . . . . . . . . . . Data Cores Recovered 4 | . . . . . . 1 . 1 . . . . . . . . . . . 1 . . . . . . . . . . . . . . . . . 1 . . Used 1 | . . . . . . . . . . . . . . . . . . . . . . . . . . . . . . . . . . . . . . 1 . . Hacking Detections 102 | . 1 . . . 1 10 . 9 . . . . 7 . 9 . . . . 7 . 7 3 . . 1 14 . 8 . . . . 5 4 1 2 5 4 4 Full Trace Events 11 | . . . . . . 2 . 2 . . . . 1 . 1 . . . . . . . . . . . 2 . 3 . . . . . . . . . . . Feedback Events . | . . . . . . . . . . . . . . . . . . . . . . . . . . . . . . . . . . . . . . . . . Feedback Blocked . | . . . . . . . . . . . . . . . . . . . . . . . . . . . . . . . . . . . . . . . . . Robot Schematics Acquired 8 | . . . . . . . . . . . 3 . . . . . . 4 . . . . . . . . . . . . . . . . . . 1 . . . Robots Built . | . . . . . . . . . . . . . . . . . . . . . . . . . . . . . . . . . . . . . . . . . Authchips . | . . . . . . . . . . . . . . . . . . . . . . . . . . . . . . . . . . . . . . . . . Time . | . . . . . . . . . . . . . . . . . . . . . . . . . . . . . . . . . . . . . . . . . Total Robot Build Rating . | . . . . . . . . . . . . . . . . . . . . . . . . . . . . . . . . . . . . . . . . . Part Schematics Acquired 36 | . . . . . . 3 . . . . 16 . . . 5 . . 9 . . . . . . . . 1 . . . . . . . . . 2 . . . Parts Built 14 | . . . . . . 3 . 1 . . . . 3 . 1 . . . . . . . . . . . 4 . 2 . . . . . . . . . . . Authchips 3 | . . . . . . . . 1 . . . . 2 . . . . . . . . . . . . . . . . . . . . . . . . . . . Time 784 | . . . . . . 163 . 58 . . . . 129 . 76 . . . . . . . . . . . 80 . 278 . . . . . . . . . . . Total Part Build Rating 87 | . . . . . . 13 . 3 . . . . 12 . 5 . . . . . . . . . . . 36 . 18 . . . . . . . . . . . Parts Repaired 9 | . . . . . . . . . . . . . . . 3 . . . . 1 . 1 . . . . 2 . 2 . . . . . . . . . . . Time 493 | . . . . . . . . . . . . . . . 113 . . . . 35 . 95 . . . . 75 . 175 . . . . . . . . . . . Parts Recycled . | . . . . . . . . . . . . . . . . . . . . . . . . . . . . . . . . . . . . . . . . . Recycled Matter . | . . . . . . . . . . . . . . . . . . . . . . . . . . . . . . . . . . . . . . . . . Retrieved Matter . | . . . . . . . . . . . . . . . . . . . . . . . . . . . . . . . . . . . . . . . . . Retrieved Components . | . . . . . . . . . . . . . . . . . . . . . . . . . . . . . . . . . . . . . . . . . Parts Scanalyzed 6 | . . . . . . 1 . . . . . . . . 4 . . . . . . 1 . . . . . . . . . . . . . . . . . . Part Schematics Acquired 5 | . . . . . . 1 . . . . . . . . 4 . . . . . . . . . . . . . . . . . . . . . . . . . Parts Damaged . | . . . . . . . . . . . . . . . . . . . . . . . . . . . . . . . . . . . . . . . . . Bothacking | -11 -10 -10 -10 -9 -8 -7 -7 -7 -7 -7 -7 -6 -6 -6 -6 -6 -6 -6 -5 -5 -5 -5 -5 -5 -5 -5 -4 -4 -4 -4 -4 -4 -3 -3 -3 -2 -2 -2 -1 -1 ------------ Run | Scr Mat Min Exi Min Mat Fac Was Fac Low Low Zio Pro Fac Was Fac Low Low Dat Pro Fac Was Fac Ext Cet Arc Hub Fac Was Fac Upp Upp War Pro Res Tes Res Qua Sec Acc Com Used RIF Installer . | . . . . . . . . . . . . . . . . . . . . . . . . . . . . . . . . . . . . . . . . . Robots Hacked 3 | . . . . . . . . . . . . . . . . . . . . . . . 1 . . . 1 . . . . . . . . . . . . 1 Non-combat 1 | . . . . . . . . . . . . . . . . . . . . . . . . . . . 1 . . . . . . . . . . . . . Combat 1 | . . . . . . . . . . . . . . . . . . . . . . . 1 . . . . . . . . . . . . . . . . . Robot Hacks Applied 2 | . . . . . . . . . . . . . . . . . . . . . . . 1 . . . 1 . . . . . . . . . . . . . parse_system 1 | . . . . . . . . . . . . . . . . . . . . . . . 1 . . . . . . . . . . . . . . . . . find_chute 1 | . . . . . . . . . . . . . . . . . . . . . . . . . . . 1 . . . . . . . . . . . . . Manual 1 | . . . . . . . . . . . . . . . . . . . . . . . . . . . . . . . . . . . . . . . . 1 Relay Couplers Released 1 | . . . . . . . . . . . . . . . . . . . . . . . . . . . . . 1 . . . . . . . . . . . Machine Destruction 1 | . . . . . . . . . . . . . . . . . . . . . . . . . . . . . 1 . . . . . . . . . . . Fabnet Peak Effective % . | . . . . . . . . . . . . . . . . . . . . . . . . . . . . . . . . . . . . . . . . . Robots Rewired 14 | . . . . . . . . . . . . . . . . . . . . . . . 10 . . . . . . . . 4 . . . . . . . . Allies Hacked 2 | . . . . . . . . . . . . . . . . . . . . . . . 2 . . . . . . . . . . . . . . . . . Hacks Repelled . | . . . . . . . . . . . . . . . . . . . . . . . . . . . . . . . . . . . . . . . . . Allies | -11 -10 -10 -10 -9 -8 -7 -7 -7 -7 -7 -7 -6 -6 -6 -6 -6 -6 -6 -5 -5 -5 -5 -5 -5 -5 -5 -4 -4 -4 -4 -4 -4 -3 -3 -3 -2 -2 -2 -1 -1 -------- Run | Scr Mat Min Exi Min Mat Fac Was Fac Low Low Zio Pro Fac Was Fac Low Low Dat Pro Fac Was Fac Ext Cet Arc Hub Fac Was Fac Upp Upp War Pro Res Tes Res Qua Sec Acc Com Total Allies 100 | . . 3 . . . 1 20 . . . 3 . 1 . . . . . 1 1 20 . 16 5 . . 1 20 1 . . 4 . . . 1 . . 1 1 Largest Group 21 | . . 3 3 3 . 1 21 21 14 8 4 4 1 1 1 . . . 1 1 20 20 19 9 4 2 1 20 11 . . 4 2 2 . 1 . . 1 1 Highest-Rated Group 732 | . . 40 40 40 . 26 544 544 367 232 98 98 26 26 26 . . . 96 10 732 732 714 729 378 185 10 730 455 . . 235 102 102 . 26 . . 26 219 Highest-Rated Ally 219 | . . 16 16 16 . 26 35 35 35 35 31 31 26 26 26 . . . 96 10 50 50 159 159 159 96 10 50 50 . . 68 56 56 . 26 . . 26 219 Total Orders 3 | . . 1 . . . . . . . . . . . . . . . . . . . . . 2 . . . . . . . . . . . . . . . . RETURN 3 | . . 1 . . . . . . . . . . . . . . . . . . . . . 2 . . . . . . . . . . . . . . . . Ally Attacks 798 | . . . . 16 . . . 45 43 45 . 10 . . . . . . 9 . . 105 231 78 29 18 . 60 89 . . 8 . 8 . . . . . 4 Total Damage 23762 | . . . . 183 . . . 748 1695 791 . 114 . . . . . . 281 . . 1680 7279 2215 1015 725 . 2709 3201 . . 619 . 181 . . . . . 326 Kills 149 | . . . . 1 . . . 6 15 8 . 2 . . . . . . 2 . . 12 46 13 3 6 . 9 21 . . 3 . . . . . . . 2 Allies Corrupted . | . . . . . . . . . . . . . . . . . . . . . . . . . . . . . . . . . . . . . . . . . Allies Melted 1 | . . . . . . . . 1 . . . . . . . . . . . . . . . . . . . . . . . . . . . . . . . . Intel | -11 -10 -10 -10 -9 -8 -7 -7 -7 -7 -7 -7 -6 -6 -6 -6 -6 -6 -6 -5 -5 -5 -5 -5 -5 -5 -5 -4 -4 -4 -4 -4 -4 -3 -3 -3 -2 -2 -2 -1 -1 ------- Run | Scr Mat Min Exi Min Mat Fac Was Fac Low Low Zio Pro Fac Was Fac Low Low Dat Pro Fac Was Fac Ext Cet Arc Hub Fac Was Fac Upp Upp War Pro Res Tes Res Qua Sec Acc Com Robot Analysis Total 6 | . . . . . . . . 1 . . . . 1 . 3 . . . . . . . . . . . 1 . . . . . . . . . . . . . Derelict Logs Recovered 15 | . . . . 2 . . . . 1 2 1 3 . . . 1 1 . 1 . . . . . . . . . . 2 1 . . . . . . . . . Drone Launches 6 | . . 1 . . . . . . . . . . . . . . . . . . . . . 5 . . . . . . . . . . . . . . . . Drone Recoveries 5 | . . 1 . . . . . . . . . . . . . . . . . . . . . 4 . . . . . . . . . . . . . . . . Exploration | -11 -10 -10 -10 -9 -8 -7 -7 -7 -7 -7 -7 -6 -6 -6 -6 -6 -6 -6 -5 -5 -5 -5 -5 -5 -5 -5 -4 -4 -4 -4 -4 -4 -3 -3 -3 -2 -2 -2 -1 -1 ------------- Run | Scr Mat Min Exi Min Mat Fac Was Fac Low Low Zio Pro Fac Was Fac Low Low Dat Pro Fac Was Fac Ext Cet Arc Hub Fac Was Fac Upp Upp War Pro Res Tes Res Qua Sec Acc Com Turns Passed 19828 | 55 872 630 550 1025 948 684 156 379 543 315 440 422 560 148 1768 241 193 27 736 897 133 526 698 386 152 106 918 115 1018 436 360 457 213 503 266 689 167 236 458 402 Spaces Moved 29438 | 46 420 431 391 595 552 2049 291 778 777 607 989 658 989 357 3064 699 568 80 898 1714 237 719 734 158 77 167 1432 236 1049 467 419 510 420 925 499 1527 416 491 1085 917 Core 11 | 11 . . . . . . . . . . . . . . . . . . . . . . . . . . . . . . . . . . . . . . . . Treads . | . . . . . . . . . . . . . . . . . . . . . . . . . . . . . . . . . . . . . . . . . Legs . | . . . . . . . . . . . . . . . . . . . . . . . . . . . . . . . . . . . . . . . . . Wheels 2424 | 35 420 431 391 595 552 . . . . . . . . . . . . . . . . . . . . . . . . . . . . . . . . . . . Hover 23619 | . . . . . . . . . 511 607 989 658 989 357 3064 699 568 80 898 1714 237 719 734 158 77 167 1432 236 1049 467 419 510 420 925 499 1527 416 491 1085 917 Flight 3384 | . . . . . . 2049 291 778 266 . . . . . . . . . . . . . . . . . . . . . . . . . . . . . . . Fastest Speed 18 | 50 100 140 140 140 110 26 26 26 26 40 40 40 34 34 34 34 34 34 34 34 38 38 44 44 44 42 30 31 31 35 35 35 35 31 37 30 30 30 30 18 Average Speed 43 | 88 142 140 140 140 110 26 26 26 36 40 40 40 36 34 34 34 34 34 34 37 38 38 44 80 109 43 38 31 35 36 35 35 35 40 37 31 30 31 30 32 Slowest Speed 215 | 100 215 140 140 140 140 26 26 26 42 42 40 40 40 102 94 34 34 34 34 40 38 44 44 110 110 44 108 31 114 42 35 123 35 121 37 32 30 36 30 118 Overloaded Moves 11 | . . . . . . . . . . . . . . . . . . . . . . . . . . . . . . . . . . . . . . . . 11 Propulsion Burnouts . | . . . . . . . . . . . . . . . . . . . . . . . . . . . . . . . . . . . . . . . . . Robots Hopped 7 | . . . . . . 7 . . . . . . . . . . . . . . . . . . . . . . . . . . . . . . . . . . Cave-ins Triggered 3 | . . . . . . . . . . . . . . . . . . . . . . . . . . . . . . . . . . 2 . . . . . 1 Exploration Rate (%) 60 | 3 81 91 86 97 58 50 90 25 90 62 84 82 22 90 45 75 70 68 82 43 87 19 88 65 81 26 39 87 41 64 65 75 67 34 62 38 69 32 22 26 Regions Visited 40 Branch Regions 23 Pre-discovered Areas 2 | . . . . . . . . . . . . . . . . 1 . 1 . . . . . . . . . . . . . . . . . . . . . . Known Exits Taken 27 | . . . . . 1 . . 1 1 1 1 1 . . 1 1 1 1 1 . . 1 1 1 1 1 . . 1 1 1 1 1 1 1 1 1 1 1 . Unknown Exits Taken 5 | 1 1 1 1 1 . . . . . . . . . . . . . . . . . . . . . . . . . . . . . . . . . . . . Scrap Searched 29 | . . 1 . 2 . . . . 3 5 1 4 . . . 1 2 . 1 . . . . . . . . . . 3 3 . 3 . . . . . . . Spaces Dug 305 | . . . . . . 8 . 3 4 9 . . 14 . 67 1 . . 4 31 . 7 . . . 5 25 1 24 4 8 . 2 20 3 23 6 13 17 6 Terrain Destroyed 782 | . . . . 28 55 8 . 3 4 9 . 123 14 . 83 1 . . 22 39 . 7 . 33 7 5 25 1 24 48 62 . 2 51 3 23 6 13 17 66 Melee 305 | . . . . . . 8 . 3 4 9 . . 14 . 67 1 . . 4 31 . 7 . . . 5 25 1 24 4 8 . 2 20 3 23 6 13 17 6 Projectile 17 | . . . . . 5 . . . . . . 2 . . . . . . . . . . . 3 7 . . . . . . . . . . . . . . . AOE 460 | . . . . 28 50 . . . . . . 121 . . 16 . . . 18 8 . . . 30 . . . . . 44 54 . . 31 . . . . . 60 Terrain Rammed . | . . . . . . . . . . . . . . . . . . . . . . . . . . . . . . . . . . . . . . . . . Walls Destroyed . | . . . . . . . . . . . . . . . . . . . . . . . . . . . . . . . . . . . . . . . . . Machines Disabled . | . . . . . . . . . . . . . . . . . . . . . . . . . . . . . . . . . . . . . . . . . Actions | -11 -10 -10 -10 -9 -8 -7 -7 -7 -7 -7 -7 -6 -6 -6 -6 -6 -6 -6 -5 -5 -5 -5 -5 -5 -5 -5 -4 -4 -4 -4 -4 -4 -3 -3 -3 -2 -2 -2 -1 -1 --------- Run | Scr Mat Min Exi Min Mat Fac Was Fac Low Low Zio Pro Fac Was Fac Low Low Dat Pro Fac Was Fac Ext Cet Arc Hub Fac Was Fac Upp Upp War Pro Res Tes Res Qua Sec Acc Com Total 35260 | 60 551 455 394 739 761 2161 370 939 1026 659 1030 808 1155 381 3630 699 567 79 1317 1910 279 958 1075 402 115 183 1745 274 1604 722 611 788 476 1000 570 1653 443 531 1167 973 Wait 4425 | 3 30 7 3 91 62 59 75 142 228 36 34 140 131 14 417 . . . 412 124 35 218 296 218 24 2 237 35 490 230 172 198 52 18 36 59 16 9 52 20 Move 29389 | 45 419 430 390 594 551 2036 290 777 776 606 988 657 989 356 3063 698 567 79 897 1714 236 718 733 157 76 166 1432 235 1048 466 418 509 419 924 498 1526 415 490 1084 917 Hop 6 | . . . . . . 6 . . . . . . . . . . . . . . . . . . . . . . . . . . . . . . . . . . Pick Up 174 | 6 10 8 1 10 19 11 1 3 5 1 2 1 5 3 14 . . . . 8 1 3 1 4 . . 8 2 9 6 . 7 . 5 7 4 . 4 4 1 Fast Attach 86 | 1 1 . . 1 2 . 2 . . 2 . . 2 3 8 . . . . 7 3 2 . 2 . 2 20 . 2 1 2 3 . 6 7 2 1 . 1 3 Attach 86 | 5 2 . . . 14 10 . 1 3 . . . 4 . 2 . . . . 4 . . 1 1 . . 1 . 3 6 2 4 . 9 1 5 . 3 1 4 Detach 19 | . . 1 . . . . . . . . . . . . 1 . . . . 2 . . . 1 . . . . 1 . 1 2 . 2 3 . 2 . . 3 Swap 96 | . 1 3 . 7 13 4 . 3 3 . 3 1 2 . 8 . . . 2 . . 3 3 6 1 2 3 1 5 . . 6 . 3 2 6 1 3 . 1 Drop 178 | . . 4 . 5 17 14 2 4 5 2 2 1 4 5 15 . . . . 12 4 6 1 6 . 2 12 . 5 6 2 10 . 5 10 9 1 3 2 2 Fire 252 | . 88 2 . 31 81 . . . . . . 8 . . 4 . . . 2 2 . . . 7 14 1 . . . 2 6 . . 2 . . . . . 2 Melee 472 | . . . . . . 21 . 9 6 11 1 . 18 . 82 1 . . 4 37 . 8 31 . . 8 32 1 41 5 8 . 5 26 6 42 7 19 23 20 Ram . | . . . . . . . . . . . . . . . . . . . . . . . . . . . . . . . . . . . . . . . . . Kick . | . . . . . . . . . . . . . . . . . . . . . . . . . . . . . . . . . . . . . . . . . Crush . | . . . . . . . . . . . . . . . . . . . . . . . . . . . . . . . . . . . . . . . . . Escape Stasis 25 | . . . . . . . . . . . . . . . 16 . . . . . . . 9 . . . . . . . . . . . . . . . . . Rewire 49 | . . . . . . . . . . . . . . . . . . . . . . . . . . . . . . . . 49 . . . . . . . . Trap 3 | . . . . . 2 . . . . 1 . . . . . . . . . . . . . . . . . . . . . . . . . . . . . . Miscellaneous . | . . . . . . . . . . . . . . . . . . . . . . . . . . . . . . . . . . . . . . . . . Route ------- -11/Scrapyard -10/Materials (discovered 3 exits: [*Mat] / *Min x2) -10/Mines (discovered 3 exits: [*Mat x2] / *Exi) -10/Exiles -9/Mines (discovered 2 exits: *Mat x2) -8/Materials (discovered 2 exits: *Fac x2) -7/Factory -7/Waste -7/Factory (discovered 3 exits: *Fac / *Low x2) -7/Lower Caves -7/Lower Caves (discovered 2 exits: *Fac / *Zio) -7/Zion -6/Proximity Caves -6/Factory (discovered 2 exits: *Low x2) -6/Waste -6/Factory (discovered 3 exits: *Fac / *Low x2) -6/Lower Caves -6/Lower Caves (discovered 2 exits: *Fac / *Dat) -6/Data Miner -5/Proximity Caves -5/Factory (discovered 3 exits: *Fac x2 / *Upp) -5/Waste -5/Factory (discovered 2 exits: *Upp / *Ext) -5/Extension (discovered 3 exits: *Fac x2 / *Cet) -5/Cetus (discovered 2 exits: *Fac / *Arc) -5/Archives (discovered 3 exits: Fac / *Hub x2) -5/Hub_04(d) (discovered 2 exits: *Fac x2) -4/Factory (discovered 2 exits: *Res / *Upp) -4/Waste -4/Factory (discovered 4 exits: *Res x2 / *Upp x2) -4/Upper Caves -4/Upper Caves (discovered 2 exits: *Res / *War) -4/Warlord -3/Proximity Caves -3/Research (discovered 4 exits: Res / Arm / *Tes x2) -3/Testing -2/Research -2/Quarantine (discovered 2 exits: *Acc / *Sec) -2/Section 7 -1/Access -1/Command History --------- Turn | Location | Event 23 | -11/Scrapyard | Discovered new exit (range 15) 56 | -11/Scrapyard | Entered Materials 224 | -10/Materials | Discovered new exit (range 7) 263 | -10/Materials | Discovered new exit (range 12) 313 | -10/Materials | Build established: Mutant 596 | -10/Materials | Discovered new exit (range 7) 928 | -10/Materials | Entered Mines 1082 | -10/Mines | Received a Rocket Launcher from a helpful Derelict 1283 | -10/Mines | Found a hidden stash of uninstalled traps 1333 | -10/Mines | Assisted by bots powering up and referring to "LRC-V3" 1346 | -10/Mines | Discovered new exit (range 11) 1363 | -10/Mines | Found the Drone Emporium 1369 | -10/Mines | Found Prototype Device 1370 | -10/Mines | Identified Thief Drone Bay 1465 | -10/Mines | Discovered new exit (range 15) 1530 | -10/Mines | Deemed a non-threat by the Exiles lab entrance 1530 | -10/Mines | Discovered new exit (range 5) 1558 | -10/Mines | Entered Exiles 1558 | -10/Exiles | Found Exiles lab abandoned 1558 | -10/Exiles | Accompanied by 3 allies 2091 | -10/Exiles | Discovered new exit (range 11) 2108 | -10/Exiles | Entered Mines 2108 | -9/Mines | Accompanied by 3 allies 2113 | -9/Mines | Joined a pair of Derelicts in attacking an 0b10 outpost 2132 | -9/Mines | Met a Derelict bent on vengeance 2172 | -9/Mines | Learned Materials terminal intel 2211 | -9/Mines | Assembled infested the area 2268 | -9/Mines | Core integrity fell below 50% 2688 | -9/Mines | Discovered new exit (range 5) 2809 | -9/Mines | Discovered new exit (range 7) 2871 | -9/Mines | Build established: Scavenger-Mutant 2962 | -9/Mines | Learned 8 Materials zone layouts 3133 | -9/Mines | Entered Materials 3133 | -8/Materials | Evolved 4 slots: Propulsion x2, Utility x2 3134 | -8/Materials | Identified exit to Factory 3135 | -8/Materials | Loaded intel: 10 terminal locations 3798 | -8/Materials | System corruption reached 10% 4081 | -8/Materials | Entered Factory 4081 | -7/Factory | Evolved 2 slots: Utility x2 4312 | -7/Factory | Fabricated Adv. Signal Interpreter (x2) 4343 | -7/Factory | Discovered new exit (range 3) 4343 | -7/Factory | Identified exit to Factory 4373 | -7/Factory | Build established: Scout 4693 | -7/Factory | Fabricated Aerolev Unit (x1) 4765 | -7/Factory | Manually triggered Chute Trap 4765 | -7/Factory | Sucked down chute 4765 | -7/Factory | Entered Waste 4766 | -7/Waste | Joined by Warlord forces that had cleared the area 4798 | -7/Waste | Discovered new exit (range 13) 4820 | -7/Waste | 1 allies followed down the chute 4883 | -7/Waste | Identified exit to Factory 4921 | -7/Waste | Entered Factory 4921 | -7/Factory | Accompanied by 21 allies 4955 | -7/Factory | Build established: Hacker-Scout 5015 | -7/Factory | Fabricated Aerolev Unit (x1) 5211 | -7/Factory | Identified exit to Lower Caves 5219 | -7/Factory | Discovered exit to Factory (range 19) 5300 | -7/Factory | Entered Lower Caves 5300 | -7/Lower Caves | Accompanied by 14 allies 5517 | -7/Lower Caves | Found Imp. Powered Armor 5714 | -7/Lower Caves | Discovered new exit (range 9) 5719 | -7/Lower Caves | Identified exit to Lower Caves 5807 | -7/Lower Caves | Build established: Hacker-Mutant 5843 | -7/Lower Caves | Entered another Lower Caves area 5843 | -7/Lower Caves | Accompanied by 8 allies 5883 | -7/Lower Caves | Discovered exit to Factory (range 10) 6070 | -7/Lower Caves | Learned Factory security intel 6143 | -7/Lower Caves | Discovered new exit (range 14) 6151 | -7/Lower Caves | Identified exit to Zion 6156 | -7/Lower Caves | Learned Factory machine intel 6158 | -7/Lower Caves | Entered Zion 6158 | -7/Zion | Accompanied by 1 ally 6200 | -7/Zion | Discovered new exit (range 14) 6205 | -7/Zion | Acquired unknown access codes intercepted by a Zionite 6244 | -7/Zion | Learned Factory terminal intel 6316 | -7/Zion | Learned Factory emergency access door positions 6412 | -7/Zion | Received a hallucinogenic algorithm 6485 | -7/Zion | Visited the Megawrench Repair Shop 6485 | -7/Zion | Megawrench repaired 2 parts 6503 | -7/Zion | Found Prototype Special Weapon 6504 | -7/Zion | Found Prototype Special Weapon 6506 | -7/Zion | Identified RU-N14's Throwing Claymores (x2) 6543 | -7/Zion | Gained Derelict followers 6564 | -7/Zion | Identified exit to Proximity Caves 6598 | -7/Zion | Entered Proximity Caves 6598 | -6/Proximity Caves | Accompanied by 4 allies 6678 | -6/Proximity Caves | Learned Factory machine intel 6744 | -6/Proximity Caves | Learned Factory non-interactive machine intel 6900 | -6/Proximity Caves | Discovered exit to Factory (range 16) 6905 | -6/Proximity Caves | Learned 8 Factory zone layouts 7020 | -6/Proximity Caves | Spotted B-75 Beast 7020 | -6/Proximity Caves | Entered Factory 7020 | -6/Factory | Evolved 2 slots: Propulsion x1, Utility x1 7024 | -6/Factory | Loaded intel: 302 machine locations 7025 | -6/Factory | Loaded intel: 250 non-interactive machine locations 7026 | -6/Factory | Loaded intel: 26 terminal locations 7134 | -6/Factory | Fabricated Aerolev Unit (x1) 7300 | -6/Factory | Discovered new exit (range 9) 7341 | -6/Factory | Discovered new exit (range 15) 7446 | -6/Factory | Fabricated Aerolev Unit (x1) 7494 | -6/Factory | Fabricated Imp. KE Penetrator (x1) 7580 | -6/Factory | Manually triggered Chute Trap 7580 | -6/Factory | Sucked down chute 7580 | -6/Factory | Entered Waste 7580 | -6/Waste | The area was eerily silent 7595 | -6/Waste | 2 allies followed down the chute 7616 | -6/Waste | Discovered new exit (range 15) 7699 | -6/Waste | Found Broken Enh. Force Lance 7713 | -6/Waste | Identified exit to Factory 7728 | -6/Waste | Entered Factory 7728 | -6/Factory | Accompanied by 1 ally 7729 | -6/Factory | Loaded intel: 249 machine locations 7939 | -6/Factory | Identified exit to Lower Caves 8410 | -6/Factory | Discovered new exit (range 16) 8792 | -6/Factory | Spotted B-75 Beast 8934 | -6/Factory | Repaired Broken Enh. Force Lance 8986 | -6/Factory | Repaired Graphene Brace 9034 | -6/Factory | Repaired Imp. Airjet 9241 | -6/Factory | Identified exit to Factory 9349 | -6/Factory | Fabricated Cld. Aerolev Unit? 9496 | -6/Factory | Entered Lower Caves 9688 | -6/Lower Caves | Discovered new exit (range 11) 9691 | -6/Lower Caves | Identified exit to Lower Caves 9737 | -6/Lower Caves | Entered another Lower Caves area 9766 | -6/Lower Caves | Discovered exit to Factory (range 8) 9812 | -6/Lower Caves | Learned Factory stockpile data 9907 | -6/Lower Caves | Discovered new exit (range 9) 9930 | -6/Lower Caves | Identified exit to Data Miner 9930 | -6/Lower Caves | Entered Data Miner 9930 | -6/Data Miner | Discovered new exit (range 7) 9937 | -6/Data Miner | Met Data Miner 9943 | -6/Data Miner | Learned location of Section 7 (-2) 9943 | -6/Data Miner | Acquired the access code to Warlord's prototype stash 9950 | -6/Data Miner | Received God Mode back door access code from Data Miner 9957 | -6/Data Miner | Identified exit to Proximity Caves 9957 | -6/Data Miner | Entered Proximity Caves 10028 | -5/Proximity Caves | Learned Factory security intel 10312 | -5/Proximity Caves | Received a Behemoth hack from an annoying Tinkerer 10650 | -5/Proximity Caves | Escorted by Enhanced Grunt 10655 | -5/Proximity Caves | Attracted the attention of an 0b10 outpost 10690 | -5/Proximity Caves | Discovered exit to Factory (range 10) 10693 | -5/Proximity Caves | Entered Factory 10693 | -5/Factory | Evolved 2 slots: Power x1, Utility x1 10787 | -5/Factory | Discovered new exit (range 4) 11050 | -5/Factory | Discovered new exit (range 7) 11054 | -5/Factory | Identified exit to Upper Caves 11157 | -5/Factory | Repaired Imp. Airjet 11188 | -5/Factory | Found Imp. Powered Armor 11201 | -5/Factory | Discovered new exit (range 5) 11230 | -5/Factory | Build established: Hacker-Scout 11590 | -5/Factory | Manually triggered Chute Trap 11590 | -5/Factory | Sucked down chute 11590 | -5/Factory | Entered Waste 11591 | -5/Waste | Joined by Warlord forces that had cleared the area 11679 | -5/Waste | Discovered new exit (range 13) 11687 | -5/Waste | Identified exit to Factory 11723 | -5/Waste | Entered Factory 11723 | -5/Factory | Accompanied by 20 allies 11822 | -5/Factory | Discovered new exit (range 15) 11831 | -5/Factory | Discovered exit to Upper Caves (range 16) 12037 | -5/Factory | Repaired Broken Cmb. Antigrav System? 12204 | -5/Factory | Identified exit to Extension 12249 | -5/Factory | Entered Extension 12249 | -5/Extension | Accompanied by 15 allies 12642 | -5/Extension | Build established: Hacker-Mutant 12646 | -5/Extension | Spotted B-75 Beast 12652 | -5/Extension | Discovered new exit (range 21) 12663 | -5/Extension | Allies destroyed B-75 Beast 12679 | -5/Extension | Spotted B-75 Beast 12704 | -5/Extension | Allies destroyed B-75 Beast 12743 | -5/Extension | Rescued a captive Derelict 12745 | -5/Extension | Energy Cycler disabled 12746 | -5/Extension | Rescued a captive Derelict 12747 | -5/Extension | Rescued a captive Derelict 12747 | -5/Extension | Rescued a captive Derelict 12752 | -5/Extension | Rescued a captive Derelict 12793 | -5/Extension | Rescued A7 12848 | -5/Extension | Discovered new exit (range 22) 12849 | -5/Extension | First assault squad dispatched 12883 | -5/Extension | Discovered new exit (range 6) 12887 | -5/Extension | Identified exit to Cetus 12947 | -5/Extension | Entered Cetus 12947 | -5/Cetus | Accompanied by 7 allies (A7) 12952 | -5/Cetus | Acquired a Cetus Manufacturing Module code from A7 12956 | -5/Cetus | Spotted Cetus Guard 12956 | -5/Cetus | Spotted Cetus Guard 12956 | -5/Cetus | Allies destroyed Cetus Guard 12960 | -5/Cetus | Spotted Cetus Guard 12960 | -5/Cetus | Spotted Cetus Guard 12969 | -5/Cetus | Allies destroyed Cetus Guard 12972 | -5/Cetus | Allies destroyed Cetus Guard 12977 | -5/Cetus | Allies destroyed Cetus Guard 13016 | -5/Cetus | Escorted A7 to Cetus Mainframe 13019 | -5/Cetus | Started Cetus Manufacturing Module 13044 | -5/Cetus | Manufactured an Enhanced Grunt 13069 | -5/Cetus | Manufactured an Enhanced Grunt 13094 | -5/Cetus | Manufactured an Enhanced Grunt 13119 | -5/Cetus | Manufactured an Enhanced Grunt 13144 | -5/Cetus | Manufactured an Enhanced Grunt 13196 | -5/Cetus | Discovered new exit (range 15) 13249 | -5/Cetus | Spotted Cetus Guard 13249 | -5/Cetus | Spotted Cetus Guard 13250 | -5/Cetus | Spotted Cetus Guard 13258 | -5/Cetus | Spotted Cetus Guard 13260 | -5/Cetus | Discovered new exit (range 16) 13260 | -5/Cetus | Allies destroyed Cetus Guard 13260 | -5/Cetus | Allies destroyed Cetus Guard 13261 | -5/Cetus | Allies destroyed Cetus Guard 13269 | -5/Cetus | Allies destroyed Cetus Guard 13276 | -5/Cetus | Met Revision 17 13322 | -5/Cetus | Identified exit to Archives 13333 | -5/Cetus | Entered Archives 13333 | -5/Archives | Accompanied by 4 allies (A7) 13338 | -5/Archives | Received a hacking code to weaken MAIN.C 13392 | -5/Archives | Discovered new exit (range 19) 13416 | -5/Archives | Discovered new exit (range 24) 13456 | -5/Archives | Discovered new exit (range 15) 13474 | -5/Archives | Identified exit to Hub_04(d) 13485 | -5/Archives | Entered Hub_04(d) 13485 | -5/Hub_04(d) | Accompanied by 2 allies 13513 | -5/Hub_04(d) | Discovered new exit (range 19) 13553 | -5/Hub_04(d) | Discovered new exit (range 21) 13588 | -5/Hub_04(d) | Identified exit to Factory 13591 | -5/Hub_04(d) | Entered Factory 13591 | -4/Factory | Evolved 2 slots: Propulsion x1, Utility x1 13690 | -4/Factory | Spotted B-86 Titan 13928 | -4/Factory | Repaired Broken Cld. Aerolev Unit? 14025 | -4/Factory | Repaired Lgt. Fission Core 14062 | -4/Factory | Build established: Hacker-Scout 14104 | -4/Factory | Discovered new exit (range 16) 14355 | -4/Factory | Fabricated Cmb. Linear Gravjet (x2) 14402 | -4/Factory | Discovered new exit (range 11) 14504 | -4/Factory | Fabricated Cmb. Linear Gravjet? 14509 | -4/Factory | Sucked down chute 14509 | -4/Factory | Entered Waste 14510 | -4/Waste | Met a frightened Derelict 14524 | -4/Waste | Met Warlord forces unprepared to attack 14524 | -4/Waste | EMP discharged 14537 | -4/Waste | Spotted C-40 Crusher 14541 | -4/Waste | Spotted C-40 Crusher 14541 | -4/Waste | Spotted C-40 Crusher 14556 | -4/Waste | Allies destroyed C-40 Crusher 14559 | -4/Waste | Allies destroyed C-40 Crusher 14564 | -4/Waste | Spotted C-40 Crusher 14571 | -4/Waste | Spotted C-40 Crusher 14573 | -4/Waste | Allies destroyed C-40 Crusher 14575 | -4/Waste | Allies destroyed C-40 Crusher 14576 | -4/Waste | Allies destroyed C-40 Crusher 14584 | -4/Waste | Discovered new exit (range 21) 14589 | -4/Waste | Identified exit to Factory 14624 | -4/Waste | EMP discharged 14624 | -4/Waste | System corruption reached 10% 14624 | -4/Waste | Entered Factory 14624 | -4/Factory | Accompanied by 11 allies 14788 | -4/Factory | Repaired Cld. Aerolev Unit 14885 | -4/Factory | Repaired Broken Mic. Antimatter Reactor 15060 | -4/Factory | Discovered new exit (range 16) 15077 | -4/Factory | Identified exit to Upper Caves 15078 | -4/Factory | Build established: Machinist-Scout 15313 | -4/Factory | Fabricated Cmb. Linear Gravjet (x2) 15374 | -4/Factory | First assault squad dispatched 15382 | -4/Factory | Spotted B-86 Titan 15500 | -4/Factory | Incoming assault squad redirected 15606 | -4/Factory | Discovered new exit (range 14) 15642 | -4/Factory | Entered Upper Caves 15651 | -4/Upper Caves | Learned location of 1 exit from Research 15676 | -4/Upper Caves | Learned location of 1 exit from Research 15791 | -4/Upper Caves | Spotted B-86 Titan 15940 | -4/Upper Caves | Found Alien Artifact 15940 | -4/Upper Caves | Identified Core Expander 15940 | -4/Upper Caves | Installed Core Expander, added new Power slot 15961 | -4/Upper Caves | Build established: Hacker-Mutant 16075 | -4/Upper Caves | Discovered new exit (range 3) 16076 | -4/Upper Caves | Identified exit to Upper Caves 16078 | -4/Upper Caves | Entered another Upper Caves area 16081 | -4/Upper Caves | Discovered new exit (range 6) 16082 | -4/Upper Caves | Identified exit to Research 16189 | -4/Upper Caves | Learned Research terminal intel 16435 | -4/Upper Caves | Discovered new exit (range 7) 16438 | -4/Upper Caves | Identified exit to Warlord 16438 | -4/Upper Caves | Entered Warlord 16450 | -4/Warlord | System corruption cleaned by Quarantine Array 16573 | -4/Warlord | Met Warlord 16577 | -4/Warlord | Opened Warlord's prototype stash 16583 | -4/Warlord | Found Prototype Reactor 16583 | -4/Warlord | Identified Vortex Chain Reactor 16598 | -4/Warlord | Warlord's base attacked by MAIN.C 16646 | -4/Warlord | Met EX-DEC 16648 | -4/Warlord | Found Prototype Energy Gun 16649 | -4/Warlord | Identified Vortex Rifle 16654 | -4/Warlord | Found Prototype Energy Gun 16655 | -4/Warlord | Identified Vortex Rail 16764 | -4/Warlord | Opened side exit 16879 | -4/Warlord | Build established: Generator-Mutant 16879 | -4/Warlord | Discovered new exit (range 9) 16881 | -4/Warlord | Identified exit to Proximity Caves 16895 | -4/Warlord | Entered Proximity Caves 16895 | -3/Proximity Caves | Accompanied by 2 allies 17053 | -3/Proximity Caves | Discovered exit to Research (range 5) 17108 | -3/Proximity Caves | Entered Research 17108 | -3/Research | Accompanied by 2 allies 17108 | -3/Research | Evolved 2 slots: Propulsion x1, Utility x1 17109 | -3/Research | Identified exit to Testing 17109 | -3/Research | Identified exit to Research 17110 | -3/Research | Loaded intel: 22 terminal locations 17511 | -3/Research | Identified exit to Armory 17582 | -3/Research | Crushed by falling debris 17582 | -3/Research | System corruption reached 10% 17584 | -3/Research | Crushed by falling debris 17611 | -3/Research | Entered Testing 17615 | -3/Testing | Lost 5 parts (1n4u) 17633 | -3/Testing | Found Prototype Energy Gun 17633 | -3/Testing | Identified Tachyon Dispersion Ray 17748 | -3/Testing | Found Prototype Energy Cannon 17769 | -3/Testing | Identified Potential Cannon 17842 | -3/Testing | Discovered exit to Research (range 14) 17855 | -3/Testing | Found Prototype Energy Cannon 17855 | -3/Testing | Identified Cld. Nova Cannon 17877 | -3/Testing | Entered Research 17877 | -2/Research | Warlord forces began assault on 0b10 17877 | -2/Research | Evolved 2 slots: Propulsion x1, Utility x1 17987 | -2/Research | Research machine network offline 17999 | -2/Research | Borebot progress halted 18048 | -2/Research | Found Prototype Device 18048 | -2/Research | Identified Exp. ECM Suite 18141 | -2/Research | Spotted B-90 Cyclops 18185 | -2/Research | Build established: Generator-Sprinter 18382 | -2/Research | Borebot progress halted 18563 | -2/Research | Discovered new exit (range 12) 18563 | -2/Research | Spotted B-90 Cyclops 18566 | -2/Research | Identified exit to Quarantine 18566 | -2/Research | Entered Quarantine 18588 | -2/Quarantine | Found Alien Slashing Weapon 18588 | -2/Quarantine | Identified Sigix Broadsword 18615 | -2/Quarantine | Garrison activated, responded to threat 18691 | -2/Quarantine | Discovered new exit (range 10) 18711 | -2/Quarantine | Spotted Fortress 18731 | -2/Quarantine | Discovered new exit (range 5) 18732 | -2/Quarantine | Identified exit to Section 7 18733 | -2/Quarantine | Entered Section 7 18813 | -2/Section 7 | Found Alien Artifact 18864 | -2/Section 7 | Found Alien Artifact 18882 | -2/Section 7 | Identified Integrated Dissipator 18882 | -2/Section 7 | Installed Integrated Dissipator, increased core heat dissipation (+20) 18885 | -2/Section 7 | Identified Integrated Mediator 18885 | -2/Section 7 | Installed Integrated Mediator, increased core attachment efficiency. 18890 | -2/Section 7 | Spotted Alpha 7 18956 | -2/Section 7 | Spotted S7 Guard 18960 | -2/Section 7 | Found Alien Artifact 18963 | -2/Section 7 | Discovered new exit (range 13) 18966 | -2/Section 7 | Identified exit to Access 18967 | -2/Section 7 | Identified Integrated Thermoelectric Network 18967 | -2/Section 7 | Installed Integrated Thermoelectric Network, gained heat-energy exchange potential 18969 | -2/Section 7 | Entered Access 18969 | -1/Access | Evolved 2 slots: Weapon x2 19219 | -1/Access | Search patrols dispatched 19374 | -1/Access | Discovered new exit (range 8) 19377 | -1/Access | Identified exit to Command 19427 | -1/Access | Entered Command 19447 | -1/Command | Phase Generator disabled 19520 | -1/Command | Spotted B-99 Colossus 19521 | -1/Command | Befriended a Behemoth using the annoying Tinkerer's hack 19530 | -1/Command | Found Prototype Slashing Weapon 19530 | -1/Command | Identified Vibroblade 19535 | -1/Command | Found Vibroblade 19811 | -1/Command | Spotted M Guard 19811 | -1/Command | Spotted M Guard 19811 | -1/Command | Spotted Combat Programmer 19812 | -1/Command | Spotted Combat Programmer 19817 | -1/Command | Crushed by falling debris 19825 | -1/Command | System corruption reached 10% 19829 | -1/Command | Self-destructed Last Messages --------------- 19812_ Penetrated by EMDS Slug. 19812_ EMDS Slug penetrates Wall. 19816_ System corrupted: Component data lost. 19817_ The unstable cave ceiling collapses. 19817_ Crushed by falling debris. 19817_ Penetrated by EMDS Slug. 19817_ Mni. Fusion Reactor destroyed. 19819_ The unstable cave ceiling collapses. 19819_ Penetrated by EMDS Slug. 19821_ Lgt. Quantum Reactor destroyed. 19821_ Door Terminal disabled. 19824_ Penetrated by EMDS Slug. 19824_ EMDS Slug penetrates Reinforced Barrier. 19825_ Penetrated by EMDS Slug. 19825_ Lgt. Quantum Reactor destroyed. 19825_ Cmb. Linear Gravjet destroyed. 19826_ Vibroblade follow-up attack on Combat Programmer. 19827_ Penetrated by EMDS Slug. 19828_ Cld. Antigrav System destroyed. 19829_ Penetrated by EMDS Slug. Map ----- +----------------------------------------------------+ | ?????????????????????????????????????????????????? | | ?????????????????????????????????????????????????? | | ?????????????????????????????????????????????????? | | ?????????????????????????????????????????????????? | | ?????????????????????????????????????????????????? | | ?????????????????????????????????????????????????? | | ?????????????????????????????????????????????????? | | ?????????????????????????????????????????????????? | | ?????????????????????????????????????????????????? | | ?????????????????????????????????????????????????? | | ?????????????????????????????????????????????????? | | ?????????????????????????????????????????????????? | | ??????????????????????????????? ???????????????? | | ??????????????????????????????# ???????????????? | | ??????????????????????????????# ???????????????? | | ??????????????????????????????# ???????????????? | | ??????????????????????????????# ???????????????? | | ??????????????????????????????# ???????????????? | | ??????????????????????????????# #??????????????? | | ??????????????????????????????# #??????????????? | | ??????????????????????????????# #??????????????? | | ??????????????????????????????# #########??????? | | ??????????????????????????????# # #??????? | | ??????????????????????????????? ##?????? | | ???????????????????????#"""##?### # ####?## | | ???????????????????????# @ ### #?# | | ???????????????????????# p###" ### | | ???????????????????????# p | | ???????????????????????# YY | | ???????????????????????# | | ???????????????????????# | | ???????????????????????# | | ???????????????????????# ### ## ### | | ???????????????????????######?# #? #?# | | ??????????????????????????????#####? # #####?## | | ???????????????????????????????????? ####??????? | | ?????????????????????????????????????###?????????? | | ?????????????????????????????????????????????????? | | ?????????????????????????????????????????????????? | | ?????????????????????????????????????????????????? | | ?????????????????????????????????????????????????? | | ?????????????????????????????????????????????????? | | ?????????????????????????????????????????????????? | | ?????????????????????????????????????????????????? | | ?????????????????????????????????????????????????? | | ?????????????????????????????????????????????????? | | ?????????????????????????????????????????????????? | | ?????????????????????????????????????????????????? | | ?????????????????????????????????????????????????? | | ?????????????????????????????????????????????????? | +----------------------------------------------------+ Best States ------------- Heat Dissipation 98 Coolant Potential 100 Energy Generation 71 Energy Capacity 1300 Matter Stores 300 Matter Capacity 300 Sight Range 20 Robot Scan Range 18 Terrain Scan Range 24 Terrain Scan Density 210 Jamming Range 16 Armor Coverage 400 Evasion (%) 72 Targeting Accuracy 14 Melee Accuracy 16 Target Analysis 8 Offensive Hacking 30 Defensive Hacking 28 Authchip Count 2 Item Schematics ----------------- Aerolev Unit | -7/Factory | Hacked Imp. Melee Analysis Suite | -7/Factory | Hacked Imp. Cesium-ion Thruster | -7/Factory | Scanalyzed Fission Core | -7/Zion | Archive Mak. Power Source | -7/Zion | Archive 0b10 Decoder Chip [Generic] | -7/Zion | Archive Core Analyzer | -7/Zion | Archive Arm. Leg | -7/Zion | Archive Microactuators | -7/Zion | Archive Fusion Compressor | -7/Zion | Archive System Restoration Module | -7/Zion | Archive Imp. System Restoration Module | -7/Zion | Archive Imp. Trap Extractor | -7/Zion | Archive Adv. Plasma Cannon | -7/Zion | Archive Imp. Shock Absorption System | -7/Zion | Archive Hvy. Missile Launcher | -7/Zion | Archive Hvy. Ion Cannon | -7/Zion | Archive Lyr. Medium Armor Plating | -7/Zion | Archive Imp. KE Penetrator | -7/Zion | Archive Enh. Force Lance | -6/Factory | Scanalyzed Graphene Brace | -6/Factory | Scanalyzed Adv. System Shield | -6/Factory | Hacked Cld. Aerolev Unit | -6/Factory | Scanalyzed Imp. Powered Armor | -6/Factory | Scanalyzed Combat Drone Bay | -6/Data Miner | Free Lgt. Regenerative Plating | -6/Data Miner | Free Cld. Nuclear Pulse Thruster | -6/Data Miner | Free Prc. Matter Filter | -6/Data Miner | Free Hvy. Gatling Laser | -6/Data Miner | Free Imp. Antigrav System | -6/Data Miner | Free Adv. Transmission Jammer | -6/Data Miner | Free Force Lance | -6/Data Miner | Free Impulse Thruster Array | -6/Data Miner | Free Cmb. Linear Gravjet | -4/Factory | Hacked Hvy. Neutron Cannon | -2/Quarantine | Archive Exp. Heat Sink | -2/Quarantine | Archive Robot Schematics ------------------ T-07 Excavator | -7/Zion | Archive M-14 Sweeper | -7/Zion | Archive Y-45 Defender | -7/Zion | Archive S-27 Virus | -6/Data Miner | Free I-36 Angel | -6/Data Miner | Free L-41 Fighter | -6/Data Miner | Free A-15 Conveyor | -6/Data Miner | Free K-01 Serf | -2/Quarantine | Archive Fabricated ------------ Adv. Signal Interpreter | x2 | -7/Factory | Preloaded Aerolev Unit | x1 | -7/Factory Aerolev Unit | x1 | -7/Factory | Authchip Aerolev Unit | x1 | -6/Factory | Authchip Aerolev Unit | x1 | -6/Factory | Authchip Imp. KE Penetrator | x1 | -6/Factory Cld. Aerolev Unit | x1 | -6/Factory Cmb. Linear Gravjet | x2 | -4/Factory Cmb. Linear Gravjet | x2 | -4/Factory Cmb. Linear Gravjet | x2 | -4/Factory Alien Tech Used ----------------- Core Expander Sigix Broadsword Integrated Dissipator Integrated Mediator Integrated Thermoelectric Network Achievements -------------- None Challenges ------------ None Game ------ Seed CarbideUtilityPrototype Manual? 0 Play Time 05:40:10 Cumulative 905.9 hours Start 2022.05.14 @ 19:00:59 End 2022.05.15 @ 17:05:20 Sessions 5 Manual Loads 0 Difficulty Rogue Special Mode None Game No. 464 Rogue 464 Adventurer 0 Explorer 0 Win Type - Total 68 Types 38/5/14/6/1/1/3/0/0 Lore% 88 Gallery% 89 Achievement% 76 Wizard Run 0 Options --------- ASCII 0 Keyboard 0 Movement Mouse Keybinds 0 Fullscreen 1 Font 28/SmallcapsLarge Map View 72x54 Tactical HUD 1 Map Filters NONE Filters NONE Steam 0 RUN: 5d9fa44e-55d7-483d-bef4-abd6212077f1